Inv Transaction,Supplier Name,Headserv Name,Stratdir Name,Account Description ,Redact Name,Paid Date,Sum of Inv Amount
460268,DOVES NEST NURSING HOME,Adult Services,"Community, Adult & Adults Early Intervention",Residential Home Long Stay Fees,,13/08/2014,"8,842.76"
460270,DOVES NEST NURSING HOME,Adult Services,"Community, Adult & Adults Early Intervention",Residential Home Long Stay Fees,,13/08/2014,"1,404.77"
460273,DOVES NEST NURSING HOME,Adult Services,"Community, Adult & Adults Early Intervention",Residential Home Long Stay Fees,,13/08/2014,"2,198.77"
460282,DOVES NEST NURSING HOME,Adult Services,"Community, Adult & Adults Early Intervention",Residential Home Long Stay Fees,,13/08/2014,"9,502.15"
460283,MOSS COTTAGE NURSING HOME,Adult Services,"Community, Adult & Adults Early Intervention",Residential Home Long Stay Fees,,04/08/2014,"5,238.90"
460283,MOSS COTTAGE NURSING HOME,Adult Services,"Community, Adult & Adults Early Intervention",Residential Home Long Stay Fees,,04/08/2014,"24,317.58"
460284,ACORN RECOVERY PROJECTS,Public Health,Public Health,Residential Home Long Stay Fees,,21/08/2014,"5,480.35"
460284,AINSWORTH NURSING HOME,Adult Services,"Community, Adult & Adults Early Intervention",Residential Home Long Stay Fees,,21/08/2014,"1,233.99"
460284,AMARA CARE LTD,Adult Services,"Community, Adult & Adults Early Intervention",Residential Home Long Stay Fees,,21/08/2014,"6,487.86"
460284,APPLE COURT,Adult Services,"Community, Adult & Adults Early Intervention",Residential Home Long Stay Fees,,21/08/2014,"2,139.00"
460284,ASHBOURNE HOUSE,Adult Services,"Community, Adult & Adults Early Intervention",Residential Home Long Stay Fees,,21/08/2014,624.96
460284,AUDEN HOUSE RESIDENTIAL HOME,Adult Services,"Community, Adult & Adults Early Intervention",Residential Home Long Stay Fees,,21/08/2014,"18,113.89"
460284,BAMFORD GRANGE N/H,Adult Services,"Community, Adult & Adults Early Intervention",Residential Home Long Stay Fees,,21/08/2014,"2,745.90"
460284,BEECHFIELD LODGE,Adult Services,"Community, Adult & Adults Early Intervention",Residential Home Long Stay Fees,,21/08/2014,"1,003.07"
460284,BELMONT PARKHILL LTD,Adult Services,"Community, Adult & Adults Early Intervention",Residential Home Long Stay Fees,,21/08/2014,"38,694.50"
460284,BIRCHWOOD,Adult Services,"Community, Adult & Adults Early Intervention",Residential Home Long Stay Fees,,21/08/2014,"2,523.09"
460284,BLACKCLIFFE LTD,Adult Services,"Community, Adult & Adults Early Intervention",Residential Home Long Stay Fees,,21/08/2014,"53,404.14"
460284,BOURNE HOUSE RESIDENTIAL HOME,Adult Services,"Community, Adult & Adults Early Intervention",Residential Home Long Stay Fees,,21/08/2014,"17,585.16"
460284,BOWERFIELD COURT,Adult Services,"Community, Adult & Adults Early Intervention",Residential Home Long Stay Fees,,21/08/2014,"3,281.57"
460284,BOWLACRE HOME,Adult Services,"Community, Adult & Adults Early Intervention",Residential Home Long Stay Fees,,21/08/2014,"14,231.27"
460284,BROOKVALE,Adult Services,"Community, Adult & Adults Early Intervention",Residential Home Long Stay Fees,,21/08/2014,"6,598.88"
460284,BROUGHTON HOUSE HOME FOR  EX-SERVICE PERSONNEL,Adult Services,"Community, Adult & Adults Early Intervention",Residential Home Long Stay Fees,,21/08/2014,880.07
460284,BRYN HAVEN,Adult Services,"Community, Adult & Adults Early Intervention",Residential Home Long Stay Fees,Business Payment,21/08/2014,942.21
460284,CAMBIAN LEARNING DISABILITIES MIDLANDS LTD,Adult Services,"Community, Adult & Adults Early Intervention",Residential Home Long Stay Fees,,21/08/2014,"18,949.33"
460284,CARE UK HOMECARE,Adult Services,"Community, Adult & Adults Early Intervention",Residential Home Long Stay Fees,,21/08/2014,491.08
460284,CARE UK HOMECARE,Adult Services,"Community, Adult & Adults Early Intervention",Residential Home Long Stay Fees,,21/08/2014,"88,384.16"
460284,CARE UK LEARNING DISABILITIES SERVS LTD,Adult Services,"Community, Adult & Adults Early Intervention",Residential Home Long Stay Fees,,21/08/2014,"10,460.57"
460284,CARELINE LIFESTYLES,Adult Services,"Community, Adult & Adults Early Intervention",Residential Home Long Stay Fees,,21/08/2014,"32,857.14"
460284,CHADDERTON TOTAL CAREUNIT LTD,Adult Services,"Community, Adult & Adults Early Intervention",Residential Home Long Stay Fees,,21/08/2014,"11,450.12"
460284,CHARNLEY HOUSE LIMITED,Adult Services,"Community, Adult & Adults Early Intervention",Residential Home Long Stay Fees,,21/08/2014,"19,438.93"
460284,CLARKSON HOUSE,Adult Services,"Community, Adult & Adults Early Intervention",Residential Home Long Stay Fees,,21/08/2014,"18,034.19"
460284,CLEARWATER CARE,Adult Services,"Community, Adult & Adults Early Intervention",Residential Home Long Stay Fees,,21/08/2014,"3,330.60"
460284,CLIFFEMOUNT COMMUNITY CARE,Adult Services,"Community, Adult & Adults Early Intervention",Residential Home Long Stay Fees,,21/08/2014,"20,073.45"
460284,COMPASS CARE LIMITED,Adult Services,"Community, Adult & Adults Early Intervention",Residential Home Long Stay Fees,,21/08/2014,"4,318.24"
460284,CYNGOR ALCOHOL INFORMATION SERVICE - CAIS,Public Health,Public Health,Residential Home Long Stay Fees,,21/08/2014,"10,988.04"
460284,DOM POLSKI CARE HOME,Adult Services,"Community, Adult & Adults Early Intervention",Residential Home Long Stay Fees,,21/08/2014,"1,876.16"
460284,DOVES NEST NURSING HOME,Adult Services,"Community, Adult & Adults Early Intervention",Residential Home Long Stay Fees,,21/08/2014,983.56
460284,DRYCLOUGH MANOR CARE HOME,Adult Services,"Community, Adult & Adults Early Intervention",Residential Home Long Stay Fees,,21/08/2014,"1,689.50"
460284,EAGLE HOUSE CARE HOME,Adult Services,"Community, Adult & Adults Early Intervention",Residential Home Long Stay Fees,,21/08/2014,"2,936.70"
460284,EDGE HILL RESIDENTIAL HOME,Adult Services,"Community, Adult & Adults Early Intervention",Residential Home Long Stay Fees,,21/08/2014,"1,944.14"
460284,ELDER HOMES GROUP,Adult Services,"Community, Adult & Adults Early Intervention",Residential Home Long Stay Fees,,21/08/2014,491.08
460284,ELDER HOMES GROUP,Adult Services,"Community, Adult & Adults Early Intervention",Residential Home Long Stay Fees,,21/08/2014,"47,828.56"
460284,FAIRFIELD VIEW CARE LTD,Adult Services,"Community, Adult & Adults Early Intervention",Residential Home Long Stay Fees,,21/08/2014,"42,770.87"
460284,FERN BANK,Adult Services,"Community, Adult & Adults Early Intervention",Residential Home Long Stay Fees,,21/08/2014,"22,283.95"
460284,FIELDHOUSE CARE HOME,Adult Services,"Community, Adult & Adults Early Intervention",Residential Home Long Stay Fees,,21/08/2014,"1,133.23"
460284,FIRBANK HOUSE NURSING & RESIDENTIAL CARE HOME,Adult Services,"Community, Adult & Adults Early Intervention",Residential Home Long Stay Fees,,21/08/2014,"16,095.97"
460284,FLORENCE LODGE,Adult Services,"Community, Adult & Adults Early Intervention",Residential Home Long Stay Fees,,27/08/2014,"2,365.84"
460284,FOUR SEASONS (DFK) LTD T/AS ASHURST PARK CARE HOME,Adult Services,"Community, Adult & Adults Early Intervention",Residential Home Long Stay Fees,,21/08/2014,"1,082.19"
460284,FOUR SEASONS HEALTH CARE,Adult Services,"Community, Adult & Adults Early Intervention",Residential Home Long Stay Fees,,21/08/2014,"22,618.76"
460284,GLENROYD CARE HOME,Adult Services,"Community, Adult & Adults Early Intervention",Residential Home Long Stay Fees,,21/08/2014,"38,440.44"
460284,GRANGEFIELD,Adult Services,"Community, Adult & Adults Early Intervention",Residential Home Long Stay Fees,,21/08/2014,963.56
460284,GREATER MANCHESTER WEST MENTAL HEALTH FOUNDATION TRUST,Public Health,Public Health,Residential Home Long Stay Fees,,21/08/2014,"6,348.00"
460284,HALF ACRE HOUSE,Adult Services,"Community, Adult & Adults Early Intervention",Residential Home Long Stay Fees,,21/08/2014,"1,025.14"
460284,HC ONE OF A KIND - GUIDE LANE,Adult Services,"Community, Adult & Adults Early Intervention",Residential Home Long Stay Fees,,21/08/2014,"34,645.76"
460284,HC ONE OF A KIND - KINGS PARK,Adult Services,"Community, Adult & Adults Early Intervention",Residential Home Long Stay Fees,,21/08/2014,"45,501.09"
460284,HC-ONE LIMITED,Adult Services,"Community, Adult & Adults Early Intervention",Residential Home Long Stay Fees,,21/08/2014,"4,316.36"
460284,HOLME MANOR RESIDENTIAL CARE HOME,Adult Services,"Community, Adult & Adults Early Intervention",Residential Home Long Stay Fees,,21/08/2014,"1,303.07"
460284,HOMELEIGH,Adult Services,"Community, Adult & Adults Early Intervention",Residential Home Long Stay Fees,,21/08/2014,"4,792.86"
460284,JIGSAW CREATIVE CARE LIMITED,Adult Services,"Community, Adult & Adults Early Intervention",Residential Home Long Stay Fees,,21/08/2014,"16,359.14"
460284,L & M HEALTHCARE,Adult Services,"Community, Adult & Adults Early Intervention",Residential Home Long Stay Fees,,21/08/2014,"1,522.42"
460284,LAUREL BANK RESIDENTIAL CARE HOME LTD,Adult Services,"Community, Adult & Adults Early Intervention",Residential Home Long Stay Fees,,21/08/2014,"11,002.23"
460284,LEONARD CHESHIRE DISABILITY,Adult Services,"Community, Adult & Adults Early Intervention",Residential Home Long Stay Fees,,21/08/2014,"2,729.79"
460284,LINWOOD PARK,Public Health,Public Health,Residential Home Long Stay Fees,,21/08/2014,"5,018.54"
460284,LOUTH CARE LTD,Adult Services,"Community, Adult & Adults Early Intervention",Residential Home Long Stay Fees,,21/08/2014,"1,789.14"
460284,LYNWOOD,Adult Services,"Community, Adult & Adults Early Intervention",Residential Home Long Stay Fees,,21/08/2014,"1,913.14"
460284,MARPLE DALE HALL LTD,Adult Services,"Community, Adult & Adults Early Intervention",Residential Home Long Stay Fees,,21/08/2014,"2,636.09"
460284,MERIDIAN HEALTHCARE LTD,Adult Services,"Community, Adult & Adults Early Intervention",Residential Home Long Stay Fees,,21/08/2014,"5,384.59"
460284,MERIDIAN HEALTHCARE LTD,Adult Services,"Community, Adult & Adults Early Intervention",Residential Home Long Stay Fees,,21/08/2014,"839,330.47"
460284,MOSS COTTAGE NURSING HOME,Adult Services,"Community, Adult & Adults Early Intervention",Residential Home Long Stay Fees,,21/08/2014,"1,473.24"
460284,MOSS COTTAGE NURSING HOME,Adult Services,"Community, Adult & Adults Early Intervention",Residential Home Long Stay Fees,,21/08/2014,"37,293.04"
460284,MR T N ATAPATTU,Adult Services,"Community, Adult & Adults Early Intervention",Residential Home Long Stay Fees,Business Payment,21/08/2014,"12,908.68"
460284,MRS P RUGGEE,Adult Services,"Community, Adult & Adults Early Intervention",Residential Home Long Stay Fees,Business Payment,21/08/2014,"5,140.76"
460284,OAKWOOD CARE CENTRE,Adult Services,"Community, Adult & Adults Early Intervention",Residential Home Long Stay Fees,,21/08/2014,"12,108.92"
460284,PENDLEBURY CARE HOMES LTD,Adult Services,"Community, Adult & Adults Early Intervention",Residential Home Long Stay Fees,,21/08/2014,"1,844.16"
460284,PENNINE CARE CENTRE,Adult Services,"Community, Adult & Adults Early Intervention",Residential Home Long Stay Fees,,21/08/2014,"5,149.87"
460284,PHOENIX FUTURES,Public Health,Public Health,Residential Home Long Stay Fees,,21/08/2014,"2,368.00"
460284,POLEBANK HALL RESIDENTIAL CARE HOME LTD,Adult Services,"Community, Adult & Adults Early Intervention",Residential Home Long Stay Fees,,21/08/2014,"5,030.48"
460284,PROGRESS ADULT SERVICES LIMITED,Adult Services,"Community, Adult & Adults Early Intervention",Residential Home Long Stay Fees,,21/08/2014,"13,352.14"
460284,SIGN,Adult Services,"Community, Adult & Adults Early Intervention",Residential Home Long Stay Fees,,21/08/2014,"4,878.51"
460284,ST GEORGE'S NURSING HOME (OLDHAM) LTD,Adult Services,"Community, Adult & Adults Early Intervention",Residential Home Long Stay Fees,,21/08/2014,"26,130.98"
460284,ST GEORGE'S RESIDENTIAL CARE HOME,Adult Services,"Community, Adult & Adults Early Intervention",Residential Home Long Stay Fees,,21/08/2014,"1,955.34"
460284,ST LAWRENCES LODGE,Adult Services,"Community, Adult & Adults Early Intervention",Residential Home Long Stay Fees,,21/08/2014,"17,073.35"
460284,ST MARY'S CONTINUING CARE LTD,Adult Services,"Community, Adult & Adults Early Intervention",Residential Home Long Stay Fees,,21/08/2014,"22,922.92"
460284,STALEY HOUSE EPH,Adult Services,"Community, Adult & Adults Early Intervention",Residential Home Long Stay Fees,,21/08/2014,"16,662.54"
460284,SUNNY BANK PRS LTD,Adult Services,"Community, Adult & Adults Early Intervention",Residential Home Long Stay Fees,,21/08/2014,"2,551.07"
460284,THE ALEXANDRA,Adult Services,"Community, Adult & Adults Early Intervention",Residential Home Long Stay Fees,,21/08/2014,"1,944.14"
460284,THE DAVID LEWIS CENTRE,Adult Services,"Community, Adult & Adults Early Intervention",Residential Home Long Stay Fees,,21/08/2014,"4,709.49"
460284,THE DELL RESIDENTIAL HOME,Adult Services,"Community, Adult & Adults Early Intervention",Residential Home Long Stay Fees,,21/08/2014,"1,679.05"
460284,THE FREMANTLE TRUST,Adult Services,"Community, Adult & Adults Early Intervention",Residential Home Long Stay Fees,,21/08/2014,"6,122.94"
460284,THE HESLEY GROUP LTD,Adult Services,"Community, Adult & Adults Early Intervention",Residential Home Long Stay Fees,,21/08/2014,"7,812.00"
460284,THE JOSEPH COX CHARITY,Adult Services,"Community, Adult & Adults Early Intervention",Residential Home Long Stay Fees,,21/08/2014,"3,542.30"
460284,THE ROYAL ELMS REST HOMES,Adult Services,"Community, Adult & Adults Early Intervention",Residential Home Long Stay Fees,,21/08/2014,"1,841.58"
460284,THE VICARAGE RESIDENTIAL CARE HOME,Adult Services,"Community, Adult & Adults Early Intervention",Residential Home Long Stay Fees,,21/08/2014,"23,725.53"
460284,THORNCLIFFE GRANGE NURSING HOME,Adult Services,"Community, Adult & Adults Early Intervention",Residential Home Long Stay Fees,,21/08/2014,"26,191.61"
460284,TURNING POINT,Adult Services,"Community, Adult & Adults Early Intervention",Residential Home Long Stay Fees,,21/08/2014,"5,040.15"
460284,TURNING POINT,Public Health,Public Health,Residential Home Long Stay Fees,,21/08/2014,"1,219.59"
460284,UNITED RESPONSE,Adult Services,"Community, Adult & Adults Early Intervention",Residential Home Long Stay Fees,,21/08/2014,"5,973.43"
460284,VICTORIA NURSING HOME,Adult Services,"Community, Adult & Adults Early Intervention",Residential Home Long Stay Fees,,21/08/2014,"8,768.57"
460284,WESTERN COUNSELLING SERVICES LTD,Public Health,Public Health,Residential Home Long Stay Fees,,21/08/2014,"1,514.71"
460284,WESTMINSTER HEALTH CARE LTD,Adult Services,"Community, Adult & Adults Early Intervention",Residential Home Long Stay Fees,,21/08/2014,"2,039.36"
460284,WINDMILL CARE HOME,Adult Services,"Community, Adult & Adults Early Intervention",Residential Home Long Stay Fees,,21/08/2014,"2,010.13"
460284,WOODLANDS RESIDENTIAL CARE HOME,Adult Services,"Community, Adult & Adults Early Intervention",Residential Home Long Stay Fees,,21/08/2014,"9,071.49"
470579,ACE SAFETY ACADEMY,Technical,Places,Training Course Costs,,04/08/2014,"2,400.00"
470579,ACORN LIGHTING SERVICES LTD,Technical,Places,Sub-contractor Services,,04/08/2014,"2,240.00"
470579,AGGREGATE INDUSTRIES UK LIMITED,Technical,Places,General Materials,,04/08/2014,"4,397.21"
470579,ANSCO SIGNS LIMITED,Civil Engineers,"Economic Growth, Investment and Sustainability",Debits Goods Received,,04/08/2014,71.4
470579,ANSCO SIGNS LIMITED,Technical,Places,General Materials,,04/08/2014,972.54
470579,ARCO LIMITED,Civil Engineers,"Economic Growth, Investment and Sustainability",Debits Goods Received,,04/08/2014,607.58
470579,ARCO LIMITED,Neighbourhoods & Communities,"Community, Adult & Adults Early Intervention",General Materials,,04/08/2014,34.16
470579,ARCO LIMITED,Sustainable Growth,Places,General Materials,,04/08/2014,72.9
470579,ARCO LIMITED,Technical,Places,General Materials,,04/08/2014,772.91
470579,BPI RECYCLED PRODUCTS,Technical,Places,General Materials,,04/08/2014,"2,736.25"
470579,CBS (NORTH WEST) LTD,Technical,Places,Sub-contractor Services,,04/08/2014,"2,120.14"
470579,EAGLE CIVIL ENGINEERING LTD,Technical,Places,Sub-contractor Services,,04/08/2014,"4,363.73"
470579,GUNN JCB LTD,Technical,Places,General Materials,,04/08/2014,"2,507.56"
470579,INSTARMAC GROUP PLC,Civil Engineers,"Economic Growth, Investment and Sustainability",Debits Goods Received,,04/08/2014,"2,037.28"
470579,KEN TAYLOR SUPPLIES LTD,Technical,Places,General Materials,,04/08/2014,696
470579,KNOWLES BROTHERS WASTE MANAGEMENT LIMITED,Technical,Places,Sub-contractor Services,,04/08/2014,520
470579,MERCURY RECYCLING LTD,Technical,Places,General Materials,,04/08/2014,619.5
470579,NEW CHARTER BUILD CO LTD,Technical,Places,Sub-contractor Services,,04/08/2014,"3,231.45"
470579,PAREX LTD,Technical,Places,General Materials,,04/08/2014,510
470579,PC WORLD BUSINESS,Technical,Places,General Materials,,04/08/2014,506.63
470579,REDDIPAK LIMITED,Civil Engineers,"Economic Growth, Investment and Sustainability",Debits Goods Received,,04/08/2014,"1,807.80"
470579,REDDIPAK LIMITED,Neighbourhoods & Communities,"Community, Adult & Adults Early Intervention",General Materials,,04/08/2014,"1,886.40"
470579,STAINTON METAL CO LTD,Civil Engineers,"Economic Growth, Investment and Sustainability",Debits Goods Received,,04/08/2014,"7,013.30"
470579,TARMAC CENTRAL LIMITED,Civil Engineers,"Economic Growth, Investment and Sustainability",Debits Goods Received,,04/08/2014,"1,964.67"
470579,TARMAC CENTRAL LIMITED,Technical,Places,General Materials,,04/08/2014,193.65
470579,WOLSELEY UK LTD,Civil Engineers,"Economic Growth, Investment and Sustainability",Debits Goods Received,,04/08/2014,592.8
470579,WOLSELEY UK LTD,Technical,Places,General Materials,,04/08/2014,188
470580,EAGLE CIVIL ENGINEERING LTD,Technical,Places,Sub-contractor Services,,11/08/2014,"2,259.45"
470580,KEN TAYLOR SUPPLIES LTD,Civil Engineers,"Economic Growth, Investment and Sustainability",Debits Goods Received,,11/08/2014,139.5
470580,KEN TAYLOR SUPPLIES LTD,Technical,Places,General Materials,,11/08/2014,707.85
470580,P CASEY (ENVIRO) LTD,Technical,Places,Sub-contractor Services,,11/08/2014,"3,344.28"
470580,SALT UNION LTD,Civil Engineers,"Economic Growth, Investment and Sustainability",Debits Goods Received,,11/08/2014,"14,813.98"
470580,STALYBRIDGE READYMIX LTD,Technical,Places,General Materials,,11/08/2014,"5,283.50"
470580,STOCKPORT MBC,Technical,Places,General Materials,,11/08/2014,541.6
470580,TARMAC CENTRAL LIMITED,Civil Engineers,"Economic Growth, Investment and Sustainability",Debits Goods Received,,11/08/2014,"3,357.33"
470580,TRAVIS PERKINS TRADING CO LTD,Civil Engineers,"Economic Growth, Investment and Sustainability",Debits Goods Received,,11/08/2014,795.45
470580,TRAVIS PERKINS TRADING CO LTD,Technical,Places,General Materials,,11/08/2014,49.76
470580,ZODION LTD,Civil Engineers,"Economic Growth, Investment and Sustainability",Debits Goods Received,,11/08/2014,802.5
470581,ACE SAFETY ACADEMY,Technical,Places,Training Course Costs,,18/08/2014,500
470581,AGGREGATE INDUSTRIES UK LIMITED,Technical,Places,General Materials,,18/08/2014,334.13
470581,AGGREGATE INDUSTRIES UK LIMITED,Technical,Places,Sub-contractor Services,,18/08/2014,"26,792.92"
470581,AMBERON LTD,Technical,Places,Additional Hire,,18/08/2014,"1,498.58"
470581,AMBERON LTD,Technical,Places,General Materials,,18/08/2014,160
470581,BENCHMARK BUILDING SUPPLIES LTD,Technical,Places,General Materials,,18/08/2014,736.31
470581,EAGLE CIVIL ENGINEERING LTD,Technical,Places,Sub-contractor Services,,18/08/2014,"22,739.41"
470581,ELLIOTT GROUP LTD,Technical,Places,Additional Hire,,18/08/2014,612
470581,FAIRWAY LANDSCAPES LTD,Technical,Places,Sub-contractor Services,,18/08/2014,"7,071.50"
470581,HSS HIRE SERVICE GROUP  PLC,Technical,Places,Additional Hire,,18/08/2014,825.59
470581,JOHN LLOYD HEYWOOD LTD,Technical,Places,Sub-contractor Services,,18/08/2014,"3,137.60"
470581,KENNY BROTHERS,Technical,Places,Sub-contractor Services,,18/08/2014,"2,830.44"
470581,KEYSOFT SOLUTIONS LTD,Technical,Places,General Materials,,18/08/2014,883.5
470581,KONSTRUCTA HIRE LIMITED,Technical,Places,General Materials,,18/08/2014,784
470581,P CASEY (ENVIRO) LTD,Technical,Places,Sub-contractor Services,,18/08/2014,"10,788.00"
470581,PG FABRICATIONS,Multiple Heads of Service,Multiple Strategic Directorates,Tax Retained Sub Contractors,,18/08/2014,-336.8
470581,PG FABRICATIONS,Technical,Places,Sub-contractor Services,,18/08/2014,"2,380.00"
470581,SALT UNION LTD,Civil Engineers,"Economic Growth, Investment and Sustainability",Debits Goods Received,,18/08/2014,"16,962.82"
470581,TARMAC CENTRAL LIMITED,Civil Engineers,"Economic Growth, Investment and Sustainability",Debits Goods Received,,18/08/2014,"1,772.00"
470581,TRAVIS PERKINS TRADING CO LTD,Technical,Places,General Materials,,18/08/2014,"2,131.07"
470581,VIRIDOR,Technical,Places,Sub-contractor Services,,18/08/2014,"3,601.92"
470581,W & B FORMWORK CO 1990,Technical,Places,Sub-contractor Services,,18/08/2014,"11,800.00"
470581,W DAVENPORT,Multiple Heads of Service,Multiple Strategic Directorates,Tax Retained Sub Contractors,Business Payment,18/08/2014,-148.4
470581,W DAVENPORT,Technical,Places,Sub-contractor Services,Business Payment,18/08/2014,742
470582,ACE SAFETY ACADEMY,Technical,Places,Training Course Costs,,27/08/2014,"1,300.00"
470582,AGGREGATE INDUSTRIES UK LIMITED,Technical,Places,General Materials,,27/08/2014,"2,487.19"
470582,ARCO LIMITED,Civil Engineers,"Economic Growth, Investment and Sustainability",Debits Goods Received,,27/08/2014,424.35
470582,ARCO LIMITED,Operations,Places,General Materials,,27/08/2014,14.26
470582,ARCO LIMITED,Sustainable Growth,Places,General Materials,,27/08/2014,266.81
470582,ARCO LIMITED,Technical,Places,General Materials,,27/08/2014,513.46
470582,BENCHMARK BUILDING SUPPLIES LTD,Civil Engineers,"Economic Growth, Investment and Sustainability",Debits Goods Received,,27/08/2014,169.2
470582,BENCHMARK BUILDING SUPPLIES LTD,Technical,Places,General Materials,,27/08/2014,424.74
470582,CONSIDERATE CONSTRUCTORS SCHEME,Technical,Places,General Materials,,27/08/2014,500
470582,CONSOLIDATED POWER TOOLS,Technical,Places,General Materials,,27/08/2014,"2,516.00"
470582,EAGLE CIVIL ENGINEERING LTD,Technical,Places,Sub-contractor Services,,27/08/2014,"14,478.82"
470582,GREENHAM TRADING LIMITED,Technical,Places,General Materials,,27/08/2014,"3,091.20"
470582,INSTARMAC GROUP PLC,Civil Engineers,"Economic Growth, Investment and Sustainability",Debits Goods Received,,27/08/2014,839.2
470582,JOHN LLOYD HEYWOOD LTD,Technical,Places,Sub-contractor Services,,27/08/2014,"10,850.10"
470582,MARWOOD ELECTRICAL CO,Technical,Places,General Materials,,27/08/2014,"6,594.72"
470582,P CASEY (ENVIRO) LTD,Technical,Places,Sub-contractor Services,,27/08/2014,"10,328.58"
470582,P P O'CONNOR,Multiple Heads of Service,Multiple Strategic Directorates,Tax Retained Sub Contractors,Business Payment,27/08/2014,"-2,257.77"
470582,P P O'CONNOR,Technical,Places,Sub-contractor Services,Business Payment,27/08/2014,"11,288.85"
470582,SALT UNION LTD,Civil Engineers,"Economic Growth, Investment and Sustainability",Debits Goods Received,,27/08/2014,"6,342.39"
470582,SPEEDY ASSET SERVICES LTD,Technical,Places,Additional Hire,,27/08/2014,577.21
470582,TARMAC CENTRAL LIMITED,Civil Engineers,"Economic Growth, Investment and Sustainability",Debits Goods Received,,27/08/2014,"2,397.92"
470582,TARMAC CENTRAL LIMITED,Technical,Places,General Materials,,27/08/2014,649.8
470582,W DAVENPORT,Multiple Heads of Service,Multiple Strategic Directorates,Tax Retained Sub Contractors,Business Payment,27/08/2014,-148.4
470582,W DAVENPORT,Technical,Places,Sub-contractor Services,Business Payment,27/08/2014,742
3250469,BURNT TREE GROUP LIMITED,Technical,Places,General Materials,,04/08/2014,"1,118.33"
3250469,COOLAIR LOGAN LTD,Technical,Places,General Materials,,04/08/2014,675
3250469,DENNIS EAGLE LTD,Technical,Places,General Materials,,04/08/2014,"1,413.66"
3250469,DIRECT FILTER/ PARTS SUPPLY,Technical,Places,Consumable Materials,,04/08/2014,86.1
3250469,DIRECT FILTER/ PARTS SUPPLY,Technical,Places,General Materials,,04/08/2014,205.43
3250469,DIRECT FILTER/ PARTS SUPPLY,Transport,"Economic Growth, Investment and Sustainability",Debits Goods Received,,04/08/2014,"1,416.15"
3250469,F & G COMMERCIALS (OLDHAM) LIMITED,Technical,Places,General Materials,,04/08/2014,797.93
3250469,F. R. SHARROCK LIMITED,Technical,Places,General Materials,,04/08/2014,271.25
3250469,F. R. SHARROCK LIMITED,Transport,"Economic Growth, Investment and Sustainability",Debits Goods Received,,04/08/2014,349.6
3250469,FAUN ZOELLER (UK) LTD,Technical,Places,General Materials,,04/08/2014,"4,140.21"
3250469,FAUN ZOELLER (UK) LTD,Transport,"Economic Growth, Investment and Sustainability",Debits Goods Received,,04/08/2014,469.7
3250469,I H S HOSEMASTER,Technical,Places,General Materials,,04/08/2014,"1,797.72"
3250469,JOHNSTON SWEEPERS LTD,Technical,Places,General Materials,,04/08/2014,"5,220.06"
3250469,PEAK PARTS,Technical,Places,Consumable Materials,,04/08/2014,828.47
3250469,PEAK PARTS,Technical,Places,General Equipment Purchase,,04/08/2014,99.56
3250469,PEAK PARTS,Technical,Places,General Materials,,04/08/2014,244.51
3250469,SGM CONTRACTS LLP,Technical,Places,General Materials,,04/08/2014,840
3250469,SHB HIRE LTD,Technical,Places,Additional Hire,,04/08/2014,590
3250469,SOMERS TOTALKARE LTD,Technical,Places,General Equipment Repair & Maintenance,,04/08/2014,"2,493.94"
3250469,T & C MOTOR PANELS,Technical,Places,General Materials,,04/08/2014,858.32
3250469,T & C MOTOR PANELS,Technical,Places,Insurance Claim Excess,,04/08/2014,250
3250469,TAMESIDE TRANSMISSIONS LTD,Technical,Places,General Materials,,18/08/2014,"1,200.00"
3250469,THE SUNLIGHT SERVICE GROUP LTD,Technical,Places,Cleaning Materials,,04/08/2014,312.1
3250469,THE SUNLIGHT SERVICE GROUP LTD,Technical,Places,Protective Clothing,,04/08/2014,313.75
3250469,TURNER GROUNDSCARE,Technical,Places,General Materials,,04/08/2014,528.91
3250469,TURNER GROUNDSCARE,Transport,"Economic Growth, Investment and Sustainability",Debits Goods Received,,04/08/2014,313.47
3250469,VISHAY PM ONBOARD LTD,Technical,Places,General Materials,,04/08/2014,"1,956.25"
3250470,A & J MOTORSPARES,Technical,Places,Consumable Materials,,14/08/2014,0
3250470,A & J MOTORSPARES,Technical,Places,General Materials,,14/08/2014,715.71
3250470,ARNOLD PLANT HIRE LTD,Technical,Places,Additional Hire,,14/08/2014,"3,830.00"
3250470,ARNOLD PLANT HIRE LTD,Technical,Places,Workshop Recharges including Misuse & Damage Costs,,14/08/2014,170.45
3250470,BURNT TREE GROUP LIMITED,Technical,Places,Additional Hire,,14/08/2014,"2,910.60"
3250470,BURNT TREE GROUP LIMITED,Technical,Places,Core Hire,,14/08/2014,"1,311.00"
3250470,DENNIS EAGLE LTD,Technical,Places,General Materials,,14/08/2014,"3,564.87"
3250470,DENNIS EAGLE LTD,Transport,"Economic Growth, Investment and Sustainability",Debits Goods Received,,14/08/2014,48.82
3250470,F & G COMMERCIALS (OLDHAM) LIMITED,Technical,Places,General Materials,,14/08/2014,570.35
3250470,F G ROWLAND LTD,Technical,Places,Additional Hire,,14/08/2014,722.81
3250470,F G ROWLAND LTD,Technical,Places,Core Hire,,14/08/2014,845
3250470,F G ROWLAND LTD,Technical,Places,Workshop Recharges including Misuse & Damage Costs,,14/08/2014,250
3250470,G B OILS TA CARLTON FUELS,Transport,"Economic Growth, Investment and Sustainability",Diesel Fuel,,14/08/2014,"44,368.80"
3250470,HARSH LTD,Technical,Places,General Materials,,14/08/2014,824.07
3250470,HI-Q TYRESERVICES,Technical,Places,Tyre Costs,,14/08/2014,"1,115.25"
3250470,JOHNSTON SWEEPERS LTD,Technical,Places,General Materials,,14/08/2014,"3,071.69"
3250470,M T KAILL(PLANT HIRE)LTD,Technical,Places,Additional Hire,,14/08/2014,899
3250470,M T KAILL(PLANT HIRE)LTD,Technical,Places,Workshop Recharges including Misuse & Damage Costs,,14/08/2014,236.7
3250470,MANCHESTER VAN HIRE LTD,Technical,Places,Additional Hire,,14/08/2014,"1,054.00"
3250470,MANCHESTER VAN HIRE LTD,Technical,Places,Core Hire,,14/08/2014,506
3250470,MANCHESTER VAN HIRE LTD,Technical,Places,General Materials,,14/08/2014,60
3250470,N A BROWN LTD,Transport,"Economic Growth, Investment and Sustainability",Debits Goods Received,,14/08/2014,"1,104.00"
3250470,SGM CONTRACTS LLP,Technical,Places,General Materials,,14/08/2014,"1,400.00"
3250470,SHB HIRE LTD,Technical,Places,Additional Hire,,14/08/2014,"1,265.00"
3250470,SHB HIRE LTD,Technical,Places,Core Hire,,14/08/2014,"13,694.25"
3250470,TERBERG MATEC UK LTD,Technical,Places,General Materials,,14/08/2014,971.43
3250470,THOMAS HARDIE,Technical,Places,General Materials,Business Payment,14/08/2014,"1,044.01"
3250470,WHALE TANKERS LTD,Technical,Places,General Materials,,14/08/2014,687.79
3250471,DENNIS EAGLE LTD,Technical,Places,General Materials,,21/08/2014,"1,536.85"
3250471,DIRECT FILTER/ PARTS SUPPLY,Technical,Places,Consumable Materials,,21/08/2014,21.5
3250471,DIRECT FILTER/ PARTS SUPPLY,Technical,Places,General Materials,,21/08/2014,176.09
3250471,DIRECT FILTER/ PARTS SUPPLY,Transport,"Economic Growth, Investment and Sustainability",Debits Goods Received,,21/08/2014,361.13
3250471,FAUN ZOELLER (UK) LTD,Technical,Places,General Materials,,21/08/2014,600.64
3250471,FREIGHT TRANSPORT ASSOCIATION,Technical,Places,Vehicle Inspection/Testing Costs,,21/08/2014,563.75
3250471,HI-Q TYRESERVICES,Technical,Places,Tyre Costs,,21/08/2014,"3,215.68"
3250471,JOHNSTON SWEEPERS LTD,Technical,Places,General Materials,,21/08/2014,928.02
3250471,POWERPOST LIMITED,Technical,Places,General Equipment Repair & Maintenance,,21/08/2014,"1,125.00"
3250471,SOMERS TOTALKARE LTD,Technical,Places,General Equipment Repair & Maintenance,,21/08/2014,648
3250472,A & K ENGINEERING SERVICES,Technical,Places,General Materials,,28/08/2014,810
3250472,DENNIS EAGLE LTD,Technical,Places,General Materials,,28/08/2014,"3,979.10"
3250472,G B OILS TA CARLTON FUELS,Transport,"Economic Growth, Investment and Sustainability",Gas - Oil Fuel,,28/08/2014,"4,741.39"
3250472,HARCON SERVICES LTD,Technical,Places,General Equipment Repair & Maintenance,,28/08/2014,275
3250472,HARCON SERVICES LTD,Technical,Places,General Materials,,28/08/2014,325
3250472,HI-Q TYRESERVICES,Technical,Places,Tyre Costs,,28/08/2014,"3,276.38"
3250472,I H S HOSEMASTER,Technical,Places,General Materials,,28/08/2014,"2,029.20"
3250472,JOHNSTON SWEEPERS LTD,Technical,Places,General Materials,,28/08/2014,"1,939.26"
3250472,N A BROWN LTD,Transport,"Economic Growth, Investment and Sustainability",Debits Goods Received,,28/08/2014,974
5147389,RED SUBMARINE LIMITED,You Choose,Director of Governance,General Materials,,07/08/2014,761.72
5152254,THE FURNISHING SERVICE LTD,Neighbourhoods & Communities,"Community, Adult & Adults Early Intervention",Fixtures & Fittings Purchase,,11/08/2014,885.51
5154716,PARK LEISURE LTD,Neighbourhoods & Communities,"Community, Adult & Adults Early Intervention",General Materials,,13/08/2014,"2,887.60"
5154844,ADDICTION DEPENDENCY SOLUTIONS (ADS),Public Health,Public Health,Professional Services,,11/08/2014,"10,000.00"
5155674,RED SUBMARINE LIMITED,You Choose,Director of Governance,General Materials,,07/08/2014,761.67
5155907,BEMROSEBOOTH,Technical,Places,General Materials,,28/08/2014,900
5156033,GREATER MANCHESTER COMBINED AUTHORITY,Technical,Places,Passenger Transport Levy,,06/08/2014,"1,614,500.00"
5156041,THE FURNISHING SERVICE LTD,Neighbourhoods & Communities,"Community, Adult & Adults Early Intervention",Fixtures & Fittings Purchase,,11/08/2014,583.02
5156541,VIRGIN BLACKPOOL,Public Health,Public Health,Professional Services,,11/08/2014,"1,288.00"
5156956,THE FURNISHING SERVICE LTD,Neighbourhoods & Communities,"Community, Adult & Adults Early Intervention",Fixtures & Fittings Purchase,,11/08/2014,"1,286.78"
5157759,IHS (GLOBAL) LIMITED,Sustainable Growth,Places,Licences,,21/08/2014,"9,170.00"
5158354,THE MANCHESTER COLLEGE,Education Services,Childrens Services,Professional Services,,11/08/2014,"20,013.05"
5158382,THE MANCHESTER COLLEGE,Education Services,Childrens Services,Professional Services,,11/08/2014,"20,013.05"
5158575,GREATER MANCHESTER COMBINED AUTHORITY,Technical,Places,Passenger Transport Levy,,11/08/2014,"1,614,500.00"
5158718,GREATER MANCHESTER WASTE DISPOSAL AUTH.,Environmental Services,Places,GMC Waste Disposal Levy,,18/08/2014,"1,478,750.00"
5159369,VIRGIN BLACKPOOL,Public Health,Public Health,Professional Services,,11/08/2014,"7,267.50"
5159371,VIRGIN BLACKPOOL,Public Health,Public Health,Professional Services,,11/08/2014,"1,653.00"
5160302,QUADRANT SECURITY GROUP LTD,Neighbourhoods & Communities,"Community, Adult & Adults Early Intervention",Security Equipment,,04/08/2014,"34,479.00"
5162088,DR PETER RICHARDS,Children's Services,Childrens Services,Professional Services,Business Payment,13/08/2014,897.75
5162617,GILLIAN M H WALKER,Neighbourhoods & Communities,"Community, Adult & Adults Early Intervention",General Materials,Business Payment,06/08/2014,"1,750.00"
5162835,LAWSON COPPACK & HART CLIENT ACCOUNT,Sustainable Growth,Places,General Lease,,06/08/2014,"10,500.00"
5162835,LAWSON COPPACK & HART CLIENT ACCOUNT,Tameside Investment Partnership,Places,Chief/Ground Rents,,06/08/2014,2.46
5162998,THE MANCHESTER COLLEGE,Education Services,Childrens Services,Professional Services,,11/08/2014,"20,013.05"
5163080,NHS GREATER MANCHESTER CSU,Adult Services,"Community,Environmental,Adult and Health Services",General Expenditure,,18/08/2014,"5,200.00"
5163308,BSI,Sustainable Growth,Places,Subscriptions,,20/08/2014,"1,550.00"
5163820,PENNINE CARE NHS TRUST,Children's Services,Childrens Services,Professional Child Services,,18/08/2014,"10,443.00"
5163885,CRESCENT ROOFING LIMITED,Education Services,Childrens Services,Building Repairs,,06/08/2014,957.78
5164298,REMPLOY LIMITED,Adult Services,"Community, Adult & Adults Early Intervention",Agency Staff,,11/08/2014,580.52
5164299,REMPLOY LIMITED,Adult Services,"Community, Adult & Adults Early Intervention",Agency Staff,,11/08/2014,725.65
5164579,CBS (NORTH WEST) LTD,Operations,Places,General Materials,,06/08/2014,637
5164849,TAMESIDE COLLEGE,Education Services,Childrens Services,Professional Services,,04/08/2014,930
5165308,VODAFONE,Children's Services,Childrens Services,Telephone Landline Costs,,13/08/2014,704.05
5165550,PG FABRICATIONS,Operations,Places,General Materials,,21/08/2014,"1,750.00"
5165708,BT PLC,Tameside Investment Partnership,Places,Telephone Landline Costs,,06/08/2014,"1,668.75"
5165749,PROFILE SECURITY SERVICES LIMITED,Neighbourhoods & Communities,"Community, Adult & Adults Early Intervention",Security Equipment,,21/08/2014,"10,780.65"
5165784,DB CLIENT A/C - C&W (THUS),Adult Services,"Community, Adult & Adults Early Intervention",General Equipment Rental,,06/08/2014,"5,250.00"
5165786,ORANGE,"Media, Marketing & Communications",Director of Governance,Telephone Landline Costs,,07/08/2014,"3,255.00"
5166088,STEP AHEAD RESOURCE SERVICES,SCYP ,Childrens Services,Living Without Formal Support,,18/08/2014,971.42
5166644,UNIVERSITY HOSPITAL OF SOUTH MANCHESTER,Public Health,Public Health,Professional Services,,07/08/2014,854.9
5166680,PATRICIA WHITTALL,(blank),(blank),Road Marking Works,Business Payment,04/08/2014,"4,648.70"
5166834,,Children's Services,Childrens Services,Foster Carer Agency Fees,Redacted Supplier,04/08/2014,"3,342.90"
5166949,WILLOW WOOD HOSPICE,Adult Services,"Community, Adult & Adults Early Intervention",Independent Sector Care Fees,,27/08/2014,"3,429.42"
5166954, ,Children's Services,Childrens Services,Under 5'S Education Private Day Nursery Fees,Redacted Supplier,04/08/2014,"3,342.90"
5166968,,Children's Services,Childrens Services,Childrens Homes Outside Local Authority Fees,Redacted Supplier,28/08/2014,"4,854.82"
5166977,MANCHESTER COMMUNITY TRANSPORT LIMITED,Education Services,Childrens Services,Hired Transport,,06/08/2014,"11,360.00"
5167033,VODAFONE,Digital Tameside,Places,Repairs & Maintenance Of General Office Equipment,,06/08/2014,"2,807.74"
5167080,CHESHIRE EAST BOROUGH COUNCIL,Children's Services,Childrens Services,"Activity (Materials, Trips)",,18/08/2014,"27,000.00"
5167207,NETCARE EUROPE LTD,Strategy & Early Intervention,Childrens Services,Professional Services,,06/08/2014,535
5167214,LEGGETT PSYCHOLOGY LTD,Education Services,Childrens Services,Professional Services,,18/08/2014,"2,400.00"
5167235,ACORN RECOVERY PROJECTS,Public Health,Public Health,Professional Services,,11/08/2014,900
5167264,DOMAIN CARE NORTH WEST LTD,Adult Services,"Community, Adult & Adults Early Intervention",Homecare Fees,,27/08/2014,639.6
5167265,DOMAIN CARE NORTH WEST LTD,Adult Services,"Community, Adult & Adults Early Intervention",Homecare Fees,,27/08/2014,"2,100.00"
5167334,ATKINS LTD,Engineers Client,"Economic Growth, Investment and Sustainability",Consultancies,,27/08/2014,"1,047.80"
5167443,RAYMOND C HARRISON BUILDERS,Housing,"Economic Growth, Investment and Sustainability",Improvement Grants - Final Mandatory,,06/08/2014,"1,000.00"
5167481,UNITED UTILITIES WATER PLC,Education Services,Childrens Services,Metered Water Costs,,06/08/2014,"2,592.00"
5167551,MRL HEALTHCARE LIMITED,Adult Services,"Community, Adult & Adults Early Intervention",Homecare Fees,,07/08/2014,"12,684.77"
5167559,CAPITA BUSINESS SERVICES LIMITED,Exchequer,Director of Finance,Computer Hardware Maintenance Costs,,18/08/2014,"2,007.00"
5167611,PULSE,Adult Services,"Community, Adult & Adults Early Intervention",Homecare Fees,,07/08/2014,"3,169.44"
5167646,ELECTRICITY NORTH WEST LTD,Technical,Places,Street Lighting,,06/08/2014,819.96
5167647,TEACHING PERSONNEL LTD,Education Services,Childrens Services,Teachers Supply,,27/08/2014,600
5167658,HOIST & SHOWER CHAIR CO,Housing,"Economic Growth, Investment and Sustainability",Improvement Grants - Final Mandatory,,06/08/2014,"2,055.00"
5167675,STAFF CARE SERVICES,Adult Services,"Community, Adult & Adults Early Intervention",Professional Consultancy Services,,11/08/2014,"1,350.00"
5167675,STAFF CARE SERVICES,Adult Services,"Community, Adult & Adults Early Intervention",Staff Travel Costs,,11/08/2014,57.12
5167703,ALTERNATIVE FUTURES GROUP,Adult Services,"Community, Adult & Adults Early Intervention",Homecare Fees,,06/08/2014,"16,905.60"
5167713,IN CONTROL PARTNERSHIP,Adult Services,"Community, Adult & Adults Early Intervention",Professional Consultancy Services,,07/08/2014,"4,166.66"
5167735,THE FURNISHING SERVICE LTD,Neighbourhoods & Communities,"Community, Adult & Adults Early Intervention",Fixtures & Fittings Purchase,,11/08/2014,814.04
5167740,THE FURNISHING SERVICE LTD,Neighbourhoods & Communities,"Community, Adult & Adults Early Intervention",Fixtures & Fittings Purchase,,06/08/2014,"1,555.14"
5167740,THE FURNISHING SERVICE LTD,Resource Management,Director of Finance,Fixtures & Fittings Purchase,,06/08/2014,30
5167744,THE FURNISHING SERVICE LTD,Neighbourhoods & Communities,"Community, Adult & Adults Early Intervention",Fixtures & Fittings Purchase,,07/08/2014,533.69
5167758,NORTH WEST EMPLOYERS,Education Services,Childrens Services,Professional Consultancy Services,,07/08/2014,910.4
5167808,,Children's Services,Childrens Services,Childrens Homes Outside Local Authority Fees,Redacted Supplier,14/08/2014,"13,451.83"
5167812,ADVENTURE BASED LEARNING,Neighbourhoods & Communities,"Community, Adult & Adults Early Intervention",Professional Entertainment Services,,04/08/2014,520
5167815,CALLROUND LIMITED,Education Services,Childrens Services,Professional Services,,07/08/2014,"1,800.00"
5167816,HBINFO LTD,Exchequer,Director of Finance,Training Course Costs,,13/08/2014,750
5167818,,Children's Services,Childrens Services,Foster Carer Agency Fees,Redacted Supplier,07/08/2014,800
5167819,INNOVATION LAB LIMITED,Strategy & Early Intervention,Childrens Services,Professional Consultancy Services,,04/08/2014,"2,000.00"
5167838,HEWLETT PACKARD LTD,Digital Tameside,Places,Computer Hardware Maintenance Costs,,04/08/2014,"1,870.50"
5167864,CARRICK SIGNS LTD,"Media, Marketing & Communications",Director of Governance,Printing And Stationery,,04/08/2014,570
5167969,WILLIAMS WOODWARD LTD,Resource Management,Director of Finance,Professional Consultancy Services,,04/08/2014,"2,075.00"
5168009,ROYAL EXCHANGE THEATRE COMPANY LTD,Neighbourhoods & Communities,"Community, Adult & Adults Early Intervention",Professional Entertainment Services,,14/08/2014,730
5168106,H M REVENUE & CUSTOMS,Environmental Services,"Economic Growth, Investment and Sustainability",Stamp Duty,,06/08/2014,"1,300.00"
5168168,DBS,People & Performance,Director of Governance,Professional Consultancy Services,,04/08/2014,"14,344.00"
5168224,GREG EGAN,Education Services,Childrens Services,Additional Hire,Business Payment,07/08/2014,"2,600.00"
5168231,NPOWER LIMITED,Education Services,Childrens Services,Electricity,,06/08/2014,"1,305.33"
5168260,JENNIE PITCEATHLY,Neighbourhoods & Communities,"Community, Adult & Adults Early Intervention",Contingency Provisions,Business Payment,11/08/2014,"2,000.00"
5168264,NPOWER LIMITED,Tameside Investment Partnership,Places,Electricity,,06/08/2014,862.26
5168270,NPOWER LIMITED,Tameside Investment Partnership,Places,Electricity,,06/08/2014,"1,920.34"
5168323,CU PHOSCO LIGHTING LTD,Technical,Places,Reactive Works Engineers Recharge,,04/08/2014,"1,395.00"
5168345,NPOWER LIMITED,Tameside Investment Partnership,Places,Electricity,,06/08/2014,"1,483.63"
5168348,UNIVERSITY HOSPITAL OF SOUTH MANCHESTER,Public Health,Public Health,Professional Services,,11/08/2014,514.85
5168350,NPOWER LIMITED,Tameside Investment Partnership,Places,Electricity,,06/08/2014,"1,954.49"
5168353,NPOWER LIMITED,Tameside Investment Partnership,Places,Electricity,,06/08/2014,744.39
5168355,NPOWER LIMITED,Tameside Investment Partnership,Places,Electricity,,06/08/2014,"1,134.51"
5168357,NPOWER LIMITED,Tameside Investment Partnership,Places,Electricity,,06/08/2014,567.18
5168358,NPOWER LIMITED,Tameside Investment Partnership,Places,Electricity,,06/08/2014,"1,119.51"
5168360,NPOWER LIMITED,Tameside Investment Partnership,Places,Electricity,,06/08/2014,602.32
5168362,NPOWER LIMITED,Tameside Investment Partnership,Places,Electricity,,06/08/2014,766.2
5168366,NPOWER LIMITED,Tameside Investment Partnership,Places,Electricity,,06/08/2014,"1,058.76"
5168367,NPOWER LIMITED,Tameside Investment Partnership,Places,Electricity,,06/08/2014,"1,517.00"
5168368,NPOWER LIMITED,Tameside Investment Partnership,Places,Electricity,,06/08/2014,"2,342.74"
5168370,NPOWER LIMITED,Tameside Investment Partnership,Places,Electricity,,06/08/2014,851.52
5168371,NPOWER LIMITED,Tameside Investment Partnership,Places,Electricity,,06/08/2014,728.14
5168372,NPOWER LIMITED,Tameside Investment Partnership,Places,Electricity,,06/08/2014,"21,213.43"
5168373,NPOWER LIMITED,Tameside Investment Partnership,Places,Electricity,,06/08/2014,"1,407.93"
5168376,NCC SERVICES LIMITED,Environmental Services,Places,Taxi Lamination Fees,,27/08/2014,795
5168377,NPOWER LIMITED,Tameside Investment Partnership,Places,Electricity,,06/08/2014,"1,891.81"
5168381,NPOWER LIMITED,Tameside Investment Partnership,Places,Electricity,,06/08/2014,714.74
5168388,NPOWER LIMITED,Tameside Investment Partnership,Places,Electricity,,06/08/2014,"1,499.68"
5168389,NPOWER LIMITED,Tameside Investment Partnership,Places,Electricity,,06/08/2014,"1,876.66"
5168391,NPOWER LIMITED,Tameside Investment Partnership,Places,Electricity,,06/08/2014,"1,099.77"
5168393,NPOWER LIMITED,Tameside Investment Partnership,Places,Electricity,,06/08/2014,"1,121.81"
5168397,NPOWER LIMITED,Tameside Investment Partnership,Places,Electricity,,06/08/2014,890.11
5168398,NPOWER LIMITED,Tameside Investment Partnership,Places,Electricity,,06/08/2014,"1,088.24"
5168399,NPOWER LIMITED,Tameside Investment Partnership,Places,Electricity,,06/08/2014,"2,168.66"
5168400,NPOWER LIMITED,Tameside Investment Partnership,Places,Electricity,,06/08/2014,538.27
5168401,NPOWER LIMITED,Tameside Investment Partnership,Places,Electricity,,06/08/2014,986.73
5168403,NPOWER LIMITED,Tameside Investment Partnership,Places,Electricity,,06/08/2014,"6,913.74"
5168410,NPOWER LIMITED,Tameside Investment Partnership,Places,Electricity,,06/08/2014,"1,037.49"
5168417,,Children's Services,Childrens Services,Childrens Homes Outside Local Authority Fees,Redacted Supplier,07/08/2014,"8,414.33"
5168433,HEALTH DEVELOPMENT CONSULTANCY LTD,Public Health,Public Health,Professional Services,,11/08/2014,"24,968.75"
5168435,VIRTUAL COLLEGE LTD,People & Performance,Director of Governance,Training Course Costs,,11/08/2014,891
5168484,,Children's Services,Childrens Services,Childrens Homes Outside Local Authority Fees,Redacted Supplier,14/08/2014,"17,050.00"
5168488,DR MARGARET SMITH,Education Services,Childrens Services,Professional Services,Business Payment,06/08/2014,"1,200.00"
5168489,GREAT PLACES HOUSING GROUP,Adult Services,"Community, Adult & Adults Early Intervention",Non-Authority Accommodation Rental,,04/08/2014,"1,035.20"
5168498,CORONA ENERGY RETAIL 4 LIMITED,Tameside Investment Partnership,Places,Gas,,06/08/2014,629.43
5168509,CORONA ENERGY RETAIL 4 LIMITED,Tameside Investment Partnership,Places,Gas,,06/08/2014,768.9
5168510,CORONA ENERGY RETAIL 4 LIMITED,Tameside Investment Partnership,Places,Gas,,06/08/2014,"1,396.89"
5168520,CORONA ENERGY RETAIL 4 LIMITED,Tameside Investment Partnership,Places,Gas,,06/08/2014,701.7
5168546,OSMIS EDUCATION LIMITED,Digital Tameside,Places,Professional Services,,11/08/2014,"3,335.00"
5168558,TAYLOR YOUNG LIMITED,Engineers Client,"Economic Growth, Investment and Sustainability",Consultancies,,27/08/2014,"2,578.00"
5168562,WILLIAMS WOODWARD LTD,Resource Management,Director of Finance,Professional Consultancy Services,,11/08/2014,"2,490.00"
5168564,CORONA ENERGY RETAIL 4 LIMITED,Tameside Investment Partnership,Places,Gas,,06/08/2014,"3,294.69"
5168569,CORONA ENERGY RETAIL 4 LIMITED,Tameside Investment Partnership,Places,Gas,,06/08/2014,673.09
5168583,THE FURNISHING SERVICE LTD,Neighbourhoods & Communities,"Community, Adult & Adults Early Intervention",Fixtures & Fittings Purchase,,07/08/2014,516.96
5168589,PRIME LIFE LTD,Adult Services,"Community, Adult & Adults Early Intervention",Homecare Fees,,11/08/2014,"3,238.35"
5168594,POSITIVE STEPS OLDHAM,Strategy & Early Intervention,Childrens Services,Professional Services,,14/08/2014,"38,219.18"
5168596,,Children's Services,Childrens Services,Childrens Homes Outside Local Authority Fees,Redacted Supplier,20/08/2014,"20,250.00"
5168597,LOUISE LIGHTFOOT,Education Services,Childrens Services,Professional Services,Business Payment,07/08/2014,"1,400.00"
5168605,RIGBY TAYLOR LTD,Operations,Places,Horticultural Equipment,,07/08/2014,"4,190.00"
5168682,THE FURNISHING SERVICE LTD,Neighbourhoods & Communities,"Community, Adult & Adults Early Intervention",Fixtures & Fittings Purchase,,14/08/2014,828.67
5168710,,Children's Services,Childrens Services,Professional Child Services,Redacted Supplier,06/08/2014,"1,900.00"
5168748,HOUSING AND CARE 21,Adult Services,"Community, Adult & Adults Early Intervention",Homecare Fees,,04/08/2014,"15,311.69"
5168766,ADVOCACY EXPERIENCE LTD,Adults Early Intervention,"Community, Adult & Adults Early Intervention",Professional Services,,14/08/2014,"7,518.62"
5168800,,Children's Services,Childrens Services,Foster Carer Agency Fees,Redacted Supplier,07/08/2014,800
5168806,CORONA ENERGY RETAIL 4 LIMITED,Tameside Investment Partnership,Places,Gas,,06/08/2014,504.16
5168808,CORONA ENERGY RETAIL 4 LIMITED,Tameside Investment Partnership,Places,Gas,,06/08/2014,616.93
5168811,CORONA ENERGY RETAIL 4 LIMITED,Tameside Investment Partnership,Places,Gas,,06/08/2014,"1,247.65"
5168829,CORONA ENERGY RETAIL 4 LIMITED,Tameside Investment Partnership,Places,Gas,,06/08/2014,634.24
5168851,VIGLEN LTD,Multiple Heads of Service,Multiple Strategic Directorates,It Equipment,,14/08/2014,664
5168854,YORKSHIRE PURCHASING ORGANISATION,Education Services,Childrens Services,Educational Equipment,,07/08/2014,"1,385.97"
5168863,NHS TAMESIDE AND GLOSSOP CCG,Public Health,Public Health,Professional Services,,11/08/2014,"107,471.75"
5168883,STEP AHEAD RESOURCE SERVICES,SCYP ,Childrens Services,Living With Formal Support,,06/08/2014,750
5168890,AIR SOCIAL CARE,Children's Services,Childrens Services,Agency Staff,,11/08/2014,"1,134.00"
5168891,AIR SOCIAL CARE,Children's Services,Childrens Services,Agency Staff,,06/08/2014,"1,100.00"
5168914,,Children's Services,Childrens Services,Childrens Homes Outside Local Authority Fees,Redacted Supplier,11/08/2014,"13,980.00"
5168918,COURSE ACADEMY LIMITED,Digital Tameside,Places,It Equipment,,18/08/2014,"1,349.00"
5168934,PROFILE SECURITY SERVICES LIMITED,Operations,Places,General Materials,,06/08/2014,"6,813.18"
5168936,PROFILE SECURITY SERVICES LIMITED,Operations,Places,General Materials,,06/08/2014,"6,593.40"
5168949,B A HODCROFT,Environmental Services,Places,Plaques,Business Payment,27/08/2014,"1,280.00"
5168951,PENNINE CARE NHS TRUST,Children's Services,Childrens Services,Professional Child Services,,27/08/2014,"2,510.00"
5168966,ELECTRICITY NORTH WEST LTD,Technical,Places,Reactive Works Engineers Recharge,,06/08/2014,749.11
5168968,MAMMOTH SIGNS LTD,Neighbourhoods & Communities,"Community, Adult & Adults Early Intervention",Signs,,20/08/2014,520
5168969,THYSSENKRUPP ENCASA LTD,Housing,"Economic Growth, Investment and Sustainability",Improvement Grants - Final Mandatory,,11/08/2014,"1,795.00"
5168970,WILLIAMS WOODWARD LTD,Resource Management,Director of Finance,Professional Consultancy Services,,18/08/2014,"2,490.00"
5168973,SERCO INSPECTIONS,Education Services,Childrens Services,Training Course Costs,,04/08/2014,"1,900.00"
5169023,UPDATA INFRASTRUCTURE UK LTD,Neighbourhoods & Communities,"Community, Adult & Adults Early Intervention",It Equipment,,14/08/2014,"3,762.00"
5169032,HANDICARE LIMITED,Housing,"Economic Growth, Investment and Sustainability",Improvement Grants - Final Mandatory,,11/08/2014,"1,881.00"
5169033,STANNAH LIFT SERVICES LTD,Housing,"Economic Growth, Investment and Sustainability",Improvement Grants - Final Mandatory,,14/08/2014,"4,924.00"
5169037,UPDATA INFRASTRUCTURE UK LTD,Multiple Heads of Service,Multiple Strategic Directorates,Communications Equipment,,14/08/2014,660
5169052,ORANGE,"Media, Marketing & Communications",Director of Governance,Mobile Telephones,,11/08/2014,910
5169072,NEW BRIDGE HORIZONS,Adult Services,"Community, Adult & Adults Early Intervention",Homecare Fees,,04/08/2014,"1,617.00"
5169076,UPDATA INFRASTRUCTURE UK LTD,Neighbourhoods & Communities,"Community, Adult & Adults Early Intervention",Mobile Telephones,,14/08/2014,722.12
5169082,RICOH UK,Multiple Heads of Service,Multiple Strategic Directorates,Debits,,11/08/2014,754.3
5169097,ROYAL MAIL GROUP PLC,Exchequer,Director of Finance,Postages,,07/08/2014,"1,507.68"
5169105,ROYAL MAIL GROUP PLC,Exchequer,Director of Finance,Postages,,04/08/2014,"1,168.93"
5169109,GEORGE COX & SONS LTD,Engineers Client,"Economic Growth, Investment and Sustainability",Engineers -External,,04/08/2014,"1,823.88"
5169110,A E YATES LTD,Engineers Client,"Economic Growth, Investment and Sustainability",New Build Construction Costs,,04/08/2014,"8,315.49"
5169111,A E YATES LTD,Engineers Client,"Economic Growth, Investment and Sustainability",New Build Construction Costs,,04/08/2014,"1,838.51"
5169146,BOOKPOINT LTD,Education Services,Childrens Services,Text Books Periodicals and Newspapers,,14/08/2014,"1,917.75"
5169151,BAAF REGISTERED CHARITY,Children's Services,Childrens Services,Professional Services,,07/08/2014,"2,591.00"
5169155,PAYPOINT COLLECTIONS LTD,Neighbourhoods & Communities,"Community, Adult & Adults Early Intervention",Emergency Grant Payments,,06/08/2014,805
5169156,UNIVERSITY OF SALFORD,Cultural and Customer Services,"Community,Environmental,Adult and Health Services",Contributions,,14/08/2014,"23,512.50"
5169158,HUBER CAR PARK SYSTEMS INTERNATIONAL GMBH,Housing,"Economic Growth, Investment and Sustainability",Engineers -External,,27/08/2014,"81,352.50"
5169174,TREASURED MEMORIES LTD,Environmental Services,Places,Plaques,,21/08/2014,807.5
5169202,CLERE IDENTITIES LIMITED,Neighbourhoods & Communities,"Community, Adult & Adults Early Intervention",Computer Hardware Maintenance Costs,,11/08/2014,572
5169221,HOIST & SHOWER CHAIR CO,Housing,"Economic Growth, Investment and Sustainability",Improvement Grants - Final Mandatory,,14/08/2014,"1,822.50"
5169227,HALLE CONCERTS SOCIETY,Education Services,Childrens Services,Professional Services,,14/08/2014,"11,500.00"
5169243,CIVICA UK LTD,Exchequer,Director of Finance,Subscriptions,,20/08/2014,"1,905.88"
5169250,CORONA ENERGY RETAIL 4 LIMITED,Education Services,Childrens Services,Gas,,06/08/2014,"1,210.63"
5169263,NEW CHARTER BUILDING CO,Education Services,Childrens Services,Building Works,,21/08/2014,"1,095.33"
5169265,AON LIMITED,Audit & Risk Management,Director of Finance,Miscellaneous Income,,21/08/2014,"-25,088.89"
5169265,AON LIMITED,Other Services,Director of Finance,Building & Contents Insurance,,21/08/2014,"430,281.37"
5169265,AON LIMITED,Other Services,Director of Finance,Employee Insurance,,21/08/2014,"444,381.89"
5169265,AON LIMITED,Other Services,Director of Finance,Miscellaneous Insurance,,21/08/2014,"38,711.69"
5169265,AON LIMITED,Other Services,Director of Finance,Transport Insurance,,21/08/2014,"239,430.05"
5169270,SPECIALIST COMPUTER CENTRES LIMITED,Audit & Risk Management,Director of Finance,Professional Consultancy Services,,11/08/2014,"3,067.50"
5169287,DOMAIN CARE NORTH WEST LTD,Adult Services,"Community, Adult & Adults Early Intervention",Homecare Fees,,27/08/2014,720
5169288,THE FURNISHING SERVICE LTD,Neighbourhoods & Communities,"Community, Adult & Adults Early Intervention",Fixtures & Fittings Purchase,,14/08/2014,578.56
5169293,THE FURNISHING SERVICE LTD,Neighbourhoods & Communities,"Community, Adult & Adults Early Intervention",Fixtures & Fittings Purchase,,14/08/2014,"1,120.86"
5169296,NHS GREATER MANCHESTER CSU,Public Health,Public Health,Professional Services,,06/08/2014,"3,026.72"
5169311,DOMAIN CARE NORTH WEST LTD,Adult Services,"Community, Adult & Adults Early Intervention",Homecare Fees,,27/08/2014,799.5
5169331,HOUSING AND CARE 21,Adult Services,"Community, Adult & Adults Early Intervention",Homecare Fees,,27/08/2014,"3,855.09"
5169332,HOUSING AND CARE 21,Adult Services,"Community, Adult & Adults Early Intervention",Homecare Fees,,27/08/2014,"3,737.81"
5169335,HOUSING AND CARE 21,Adult Services,"Community, Adult & Adults Early Intervention",Homecare Fees,,27/08/2014,"3,733.33"
5169346,DOMAIN CARE NORTH WEST LTD,Adult Services,"Community, Adult & Adults Early Intervention",Homecare Fees,,27/08/2014,"3,960.00"
5169348,TYNETEC,Adult Services,"Community, Adult & Adults Early Intervention",It Equipment,,20/08/2014,"7,493.29"
5169351,DOMAIN CARE NORTH WEST LTD,Adult Services,"Community, Adult & Adults Early Intervention",Homecare Fees,,13/08/2014,639.6
5169359,THE READING AGENCY FOR LIBRARIES LTD,Neighbourhoods & Communities,"Community, Adult & Adults Early Intervention",Purchase Books,,21/08/2014,"2,372.27"
5169362,GALA TENT,Technical,Places,General Equipment Purchase,,04/08/2014,"1,566.63"
5169370,STOCKPORT NHS FOUNDATION TRUST,Strategy & Early Intervention,Childrens Services,Professional Services,,04/08/2014,"2,735.80"
5169377,RIGBY TAYLOR LTD,Operations,Places,General Materials,,21/08/2014,"3,495.00"
5169392,ELECTRICITY NORTH WEST LTD,Technical,Places,Reactive Works Engineers Recharge,,06/08/2014,"1,049.99"
5169423,EMPRESS CONNECT,Education Services,Childrens Services,Security Services,,18/08/2014,"5,226.00"
5169425,GREAT PLACES HOUSING GROUP,Adult Services,"Community, Adult & Adults Early Intervention",Non-Authority Accommodation Rental,,21/08/2014,"1,035.20"
5169426,,Children's Services,Childrens Services,Foster Carer Agency Fees,Redacted Supplier,27/08/2014,"2,825.00"
5169430,TIBARD LTD,Tameside Investment Partnership,Places,Grounds Maintenance,,06/08/2014,"1,600.00"
5169442,GVA GRIMLEY LTD,Housing,"Economic Growth, Investment and Sustainability",Professional Services,,06/08/2014,"10,400.56"
5169447,UK HEALTH FORUM,Public Health,Public Health,Subscriptions,,21/08/2014,"2,200.00"
5169453,SYSTEMSLINK 2000 LIMITED,Technical,Places,It Equipment,,21/08/2014,"1,015.00"
5169460,MRL HEALTHCARE LIMITED,Adult Services,"Community, Adult & Adults Early Intervention",Homecare Fees,,04/08/2014,"12,405.89"
5169462,THE UNIVERSITY OF MANCHESTER,Adult Services,"Community, Adult & Adults Early Intervention",Training Course Costs,,04/08/2014,665
5169464,RICOH UK,Multiple Heads of Service,Multiple Strategic Directorates,Debits,,21/08/2014,"16,232.51"
5169465,ADS,Public Health,Public Health,Professional Services,,28/08/2014,"5,019.19"
5169477,TRANSITIONAL PLUS CARE CIC LTD,Children's Services,Childrens Services,Living With Formal Support,,06/08/2014,"3,764.29"
5169487,POSTAGE BY PHONE PITNEY BOWES LTD,Exchequer,Director of Finance,Postages,,06/08/2014,"5,009.00"
5169488,,Children's Services,Childrens Services,Foster Carer Agency Fees,Redacted Supplier,21/08/2014,"7,971.43"
5169507,THE FURNISHING SERVICE LTD,Neighbourhoods & Communities,"Community, Adult & Adults Early Intervention",Fixtures & Fittings Purchase,,14/08/2014,748.44
5169515,UPDATA INFRASTRUCTURE UK LTD,Multiple Heads of Service,Multiple Strategic Directorates,Communications Equipment,,18/08/2014,"2,961.77"
5169518,THE YABOO COMPANY LIMITED,Environmental Services,Places,Computer Software Maintenance Costs,,14/08/2014,"7,792.00"
5169521,TYNETEC,Adult Services,"Community, Adult & Adults Early Intervention",It Equipment,,21/08/2014,862.41
5169525,THE MANCHESTER COLLEGE,Education Services,Childrens Services,Professional Services,,11/08/2014,"48,040.09"
5169544,NORTHGATE INFORMATION SOLUTIONS UK LTD,Neighbourhoods & Communities,"Community, Adult & Adults Early Intervention",Computer Hardware Maintenance Costs,,21/08/2014,"19,799.54"
5169545,HECTARE 8 CONTRACTS LTD,Environmental Services,Places,Professional Weedspraying Services,,21/08/2014,"2,400.00"
5169565,HECTARE 8 CONTRACTS LTD,Operations,Places,Professional Weedspraying Services,,21/08/2014,"4,200.00"
5169575,UNITED UTILITIES WATER PLC,Tameside Investment Partnership,Places,Metered Water Costs,,06/08/2014,523.48
5169578,UNITED UTILITIES WATER PLC,Education Services,Childrens Services,Metered Water Costs,,06/08/2014,"2,277.79"
5169584,LGC - LOCAL GOVERNMENT CHRONICLE,Education Services,Childrens Services,Training Course Costs,,20/08/2014,"1,500.00"
5169607,CENTRAL M/CR UNIVERSITY HOSPITALS NHS FOUNDATION,Public Health,Public Health,Professional Services,,04/08/2014,"61,947.00"
5169617,GREENSCAPE,Operations,Places,Agency Staff,,07/08/2014,777.3
5169618,GREENSCAPE,Operations,Places,Agency Staff,,07/08/2014,784.08
5169630,TIPP,Children's Services,Childrens Services,"Activity (Materials, Trips)",,18/08/2014,"6,000.00"
5169638,FOUNDATION (CENTRAL SERVICES),Neighbourhoods & Communities,"Community, Adult & Adults Early Intervention",Supporting People Gross Contract,,28/08/2014,"35,000.00"
5169639,WILLIAMS WOODWARD LTD,Resource Management,Director of Finance,Professional Consultancy Services,,21/08/2014,830
5169651,M.C. & M.A. STEWART HAULAGE LTD,Operations,Places,General Materials,,11/08/2014,"1,174.80"
5169664,,Children's Services,Childrens Services,Foster Carer Agency Fees,Redacted Supplier,21/08/2014,"3,273.02"
5169666,THE CONSERVATION VOLUNTEERS,Operations,Places,Voluntary Organisations Fees,,21/08/2014,"1,600.00"
5169668,GBM DIGITAL TECHNOLOGIESLIMITED,"Media, Marketing & Communications",Director of Governance,Computer Hardware Maintenance Costs,,21/08/2014,"1,275.00"
5169684,UNITED UTILITIES WATER PLC,Tameside Investment Partnership,Places,Building Repairs,,06/08/2014,"2,725.63"
5169686,UNITED UTILITIES WATER PLC,Tameside Investment Partnership,Places,Building Repairs,,06/08/2014,"1,555.89"
5169689,SEDGEMOOR DISTRICT COUNCIL,Other Services,Director of Finance,Professional Consultancy Services,,11/08/2014,"6,012.44"
5169690,ALTERNATIVE FUTURES GROUP,Adult Services,"Community, Adult & Adults Early Intervention",Homecare Fees,,11/08/2014,"16,905.60"
5169692,MANCHESTER CITY COUNCIL,Children's Services,Childrens Services,Professional Child Services,,06/08/2014,"15,000.00"
5169693,ROYAL MAIL GROUP PLC,Exchequer,Director of Finance,Postages,,14/08/2014,"1,502.68"
5169696,PENNINE CARE NHS TRUST,Adult Services,"Community, Adult & Adults Early Intervention",Professional Services,,07/08/2014,"7,296.00"
5169703,,Children's Services,Childrens Services,Cash Grants,Redacted Supplier,04/08/2014,650
5169705,CARE UK HOMECARE,Adult Services,"Community, Adult & Adults Early Intervention",Homecare Fees,,14/08/2014,"5,309.16"
5169708,ALTERNATIVE FUTURES GROUP,Adult Services,"Community, Adult & Adults Early Intervention",Homecare Fees,,11/08/2014,"3,525.38"
5169709,CARE UK HOMECARE,Adult Services,"Community, Adult & Adults Early Intervention",Homecare Fees,,14/08/2014,"113,208.33"
5169712,HECTARE 8 CONTRACTS LTD,Operations,Places,Professional Weedspraying Services,,04/08/2014,"18,950.00"
5169727,HMCTS,Children's Services,Childrens Services,Court Fees,,06/08/2014,"8,435.00"
5169729,INSPIREDSPACES TAMESIDE LTD,Asset Management and Investment Partnership Management,"Economic Growth, Investment and Sustainability",Refurbish Accommodation Works,,14/08/2014,"577,180.07"
5169729,INSPIREDSPACES TAMESIDE LTD,Asset Management and Investment Partnership Management,"Economic Growth, Investment and Sustainability",Telecom,,14/08/2014,"42,376.17"
5169729,INSPIREDSPACES TAMESIDE LTD,Engineers Client,"Economic Growth, Investment and Sustainability",Adaptations - Jobs <#500,,14/08/2014,"3,334.00"
5169730,INSPIREDSPACES TAMESIDE LTD,Asset Management and Investment Partnership Management,"Economic Growth, Investment and Sustainability",Refurbishment Construction Costs,,06/08/2014,"979,363.74"
5169730,INSPIREDSPACES TAMESIDE LTD,Sustainable Growth,Places,Professional Services,,06/08/2014,"1,500.00"
5169731,INSPIREDSPACES TAMESIDE (PROJECTCO2) LTD,Asset Mgmt & Investment Partnership Mgmt,Places,Free School Meal Costs,,06/08/2014,"11,254.00"
5169731,INSPIREDSPACES TAMESIDE (PROJECTCO2) LTD,Asset Mgmt & Investment Partnership Mgmt,Places,Refreshments,,06/08/2014,"1,426.92"
5169731,INSPIREDSPACES TAMESIDE (PROJECTCO2) LTD,Asset Mgmt & Investment Partnership Mgmt,Places,Unitary Charge Payments,,06/08/2014,"783,466.90"
5169731,INSPIREDSPACES TAMESIDE (PROJECTCO2) LTD,Asset Mgmt & Investment Partnership Mgmt,Places,Utilities,,06/08/2014,"50,796.77"
5169732,INSPIREDSPACES TAMESIDE LTD,Asset Management and Investment Partnership Management,"Economic Growth, Investment and Sustainability",Telecom,,06/08/2014,"2,889.94"
5169732,INSPIREDSPACES TAMESIDE LTD,Asset Mgmt & Investment Partnership Mgmt,Places,Refreshments,,06/08/2014,"55,706.97"
5169737,"TAMESIDE, OLDHAM AND GLOSSOP MIND",Adults Early Intervention,"Community, Adult & Adults Early Intervention",Professional Services,,06/08/2014,"44,167.50"
5169746,NEW CHARTER HOUSING TRUST GROUP,Housing,"Economic Growth, Investment and Sustainability",Improvement Grants - Final Mandatory,,27/08/2014,"3,442.00"
5169755,TYNETEC,Adult Services,"Community, Adult & Adults Early Intervention",It Equipment,,27/08/2014,"5,890.00"
5169763,STEP AHEAD RESOURCE SERVICES,SCYP ,Childrens Services,Living With Formal Support,,04/08/2014,850
5169764,HOIST & SHOWER CHAIR CO,Housing,"Economic Growth, Investment and Sustainability",Adaptations - Jobs <#500,,27/08/2014,"2,305.00"
5169765,HOIST & SHOWER CHAIR CO,Housing,"Economic Growth, Investment and Sustainability",Improvement Grants - Final Mandatory,,27/08/2014,"1,250.00"
5169767,ELECTRICITY NORTH WEST LTD,Environmental Services,"Economic Growth, Investment and Sustainability",Engineers -External,,04/08/2014,654.81
5169769,STEP AHEAD RESOURCE SERVICES,SCYP ,Childrens Services,Living With Formal Support,,04/08/2014,750
5169771,ALTERNATIVE FUTURES GROUP,Adult Services,"Community, Adult & Adults Early Intervention",Homecare Fees,,11/08/2014,"116,656.04"
5169781,CBS (NORTH WEST) LTD,Operations,Places,Electrical Works,,07/08/2014,753
5169798,NEC (UK) LTD,Multiple Heads of Service,Multiple Strategic Directorates,Debits,,27/08/2014,"29,314.86"
5169813,TAMESIDE SPORTS TRUST,Cultural and Customer Services,"Community,Environmental,Adult and Health Services",Refurbishment Construction Costs,,06/08/2014,"81,470.26"
5169814,SIEMENS FINANCIAL SERVICES LTD,Education Services,Childrens Services,Telephone Landline Costs,,07/08/2014,"25,795.57"
5169820,RICOH UK,Multiple Heads of Service,Multiple Strategic Directorates,Debits,,27/08/2014,"15,253.02"
5169835,CENTRAL M/CR UNIVERSITY HOSPITALS NHS FOUNDATION,Public Health,Public Health,Professional Services,,07/08/2014,"4,266.00"
5169841,THE LOWRY,Neighbourhoods & Communities,"Community, Adult & Adults Early Intervention",Professional Entertainment Services,,04/08/2014,855
5169857,CARE IN MIND LTD,Adult Services,"Community, Adult & Adults Early Intervention",Residential Home Short Stay Fees,,28/08/2014,"11,054.60"
5169867,UPDATA INFRASTRUCTURE UK LTD,Multiple Heads of Service,Multiple Strategic Directorates,Telephone Landline Costs,,14/08/2014,781.28
5169868,UPDATA INFRASTRUCTURE UK LTD,Multiple Heads of Service,Multiple Strategic Directorates,Communications Equipment,,14/08/2014,"3,762.00"
5169871,UPDATA INFRASTRUCTURE UK LTD,Digital Tameside,Places,Telephone Landline Costs,,28/08/2014,"1,100.00"
5169880,KILLGERM CHEMICALS LTD,Environmental Services,Places,Pest Control Equipment,,28/08/2014,"2,115.10"
5169889,LIME TRAVEL,Strategy & Early Intervention,Childrens Services,Transport Of Pupils,,04/08/2014,"1,925.10"
5169890,P MEADOWCROFT,Technical,Places,Hired Transport,Business Payment,04/08/2014,"1,040.00"
5169897,,Children's Services,Childrens Services,Foster Carer Agency Fees,Redacted Supplier,07/08/2014,"3,301.15"
5169899,S&M PLUMBING AND HEATING,Adult Services,"Community, Adult & Adults Early Intervention",Building Repairs,,28/08/2014,545
5169904,,Children's Services,Childrens Services,Childrens Homes Outside Local Authority Fees,Redacted Supplier,28/08/2014,"13,064.33"
5169911,HOMESTART TAMESIDE & OLDHAM,Public Health,Public Health,Professional Services,,28/08/2014,"16,666.67"
5169915,DELTA INTERNATIONAL,(blank),(blank),Debits,,28/08/2014,650
5169920,,Children's Services,Childrens Services,Childrens Homes Outside Local Authority Fees,Redacted Supplier,28/08/2014,"10,176.99"
5169921,PENNINE CARE NHS TRUST,Public Health,Public Health,Professional Services,,07/08/2014,"879,084.99"
5169923,TAMESIDE HOSPITAL NHS FOUNDATION TRUST,Public Health,Public Health,Professional Services,,11/08/2014,"2,125.00"
5169925,PENNINE CARE NHS TRUST,Other Services,Director of Finance,Professional Services,,06/08/2014,"12,918.00"
5169932,TAMESIDE HOSPITAL NHS FOUNDATION TRUST,Public Health,Public Health,Professional Services,,20/08/2014,"3,004.54"
5169939,NEW CHARTER HOUSING TRUST GROUP,Children's Services,Childrens Services,Planning Fees,,06/08/2014,"3,458.83"
5169939,NEW CHARTER HOUSING TRUST GROUP,Neighbourhoods & Communities,"Community, Adult & Adults Early Intervention",Supporting People Gross Contract,,06/08/2014,"26,433.08"
5169939,NEW CHARTER HOUSING TRUST GROUP,Public Health,Public Health,Supporting People Gross Contract,,06/08/2014,"13,176.25"
5169940,,Children's Services,Childrens Services,Foster Carer Agency Fees,Redacted Supplier,28/08/2014,"3,270.50"
5169945,,Children's Services,Childrens Services,Foster Carer Agency Fees,Redacted Supplier,28/08/2014,"3,106.82"
5169946,CURZON ASHTON FOOTBALL CLUB,Children's Services,Childrens Services,Professional Child Services,,06/08/2014,500
5169951,SPECIALISED HOMES AND LODGINGS LTD,SCYP ,Childrens Services,Living With Formal Support,,27/08/2014,"3,321.42"
5169952,TRIBAL EDUCATION LTD,Children's Services,Childrens Services,Computer Software Maintenance Costs,,28/08/2014,"15,000.00"
5169956,MO WHITTLE,Children's Services,Childrens Services,Inspection Fees,Business Payment,04/08/2014,"2,064.86"
5169957,METRIC GROUP LTD,Technical,Places,Repairs & Maintenance Of Car Park Equipment,,07/08/2014,"2,747.52"
5169964,,Children's Services,Childrens Services,Foster Carer Agency Fees,Redacted Supplier,20/08/2014,"3,941.65"
5169970,SPECIALISED HOMES AND LODGINGS LTD,SCYP ,Childrens Services,Living With Formal Support,,27/08/2014,"3,321.42"
5169973,,Children's Services,Childrens Services,Foster Carer Agency Fees,Redacted Supplier,07/08/2014,799
5169975,,Children's Services,Childrens Services,Foster Carer Agency Fees,Redacted Supplier,21/08/2014,800
5169976,,Children's Services,Childrens Services,Foster Carer Agency Fees,Redacted Supplier,28/08/2014,"3,759.99"
5169979,PATRICIA BUXTON,Children's Services,Childrens Services,Professional Services,Business Payment,04/08/2014,666.38
5169984,SPECIALISED HOMES AND LODGINGS LTD,SCYP ,Childrens Services,Living With Formal Support,,27/08/2014,"11,131.42"
5169993,TRINITY CHURCH OF ENGLAND HIGH SCHOOL,Education Services,Childrens Services,Other Local Authorities Fees,,11/08/2014,"1,317.00"
5169994,,Children's Services,Childrens Services,Foster Carer Agency Fees,Redacted Supplier,14/08/2014,"5,612.23"
5169995,,Children's Services,Childrens Services,Foster Carer Agency Fees,Redacted Supplier,14/08/2014,"3,405.00"
5169998,,Children's Services,Childrens Services,Foster Carer Agency Fees,Redacted Supplier,14/08/2014,"4,239.00"
5169999,,Children's Services,Childrens Services,Foster Carer Agency Fees,Redacted Supplier,14/08/2014,"4,239.00"
5170000,,Children's Services,Childrens Services,Foster Carer Agency Fees,Redacted Supplier,14/08/2014,"4,239.00"
5170001,CLOVERLEAF ADVOCACY 2000 LTD,Adults Early Intervention,"Community, Adult & Adults Early Intervention",Professional Services,,28/08/2014,"12,408.34"
5170010,BRIAN OLIVER,Housing,"Economic Growth, Investment and Sustainability",Adaptations - Jobs <#500,Business Payment,07/08/2014,500
5170023,BRIAN OLIVER,Housing,"Economic Growth, Investment and Sustainability",Adaptations - Jobs <#500,Business Payment,07/08/2014,500
5170024,TRAFFORD MBC,Other Services,Director of Finance,Other Accomodation Related Costs,,06/08/2014,834
5170036,,Adult Services,"Community, Adult & Adults Early Intervention",Day Care Fees,Redacted Supplier,06/08/2014,916.74
5170050,KHUSHAMDID,Adults Early Intervention,"Community, Adult & Adults Early Intervention",Luncheon Club Fees,Business Payment,06/08/2014,"5,050.00"
5170051,GWENALT CONSULTING LIMITED,Public Health,Public Health,Professional Services,,21/08/2014,"9,500.00"
5170054,,Children's Services,Childrens Services,Foster Carer Agency Fees,Redacted Supplier,14/08/2014,"2,748.33"
5170055,,Children's Services,Childrens Services,Foster Carer Agency Fees,Redacted Supplier,14/08/2014,"3,272.67"
5170061,,Children's Services,Childrens Services,Foster Carer Agency Fees,Redacted Supplier,14/08/2014,"3,420.54"
5170064,,Children's Services,Childrens Services,Foster Carer Agency Fees,Redacted Supplier,14/08/2014,"3,011.34"
5170065,CYCLESCHEME LTD,Multiple Heads of Service,Multiple Strategic Directorates,Debits,,06/08/2014,"2,032.48"
5170070,PARALLEL PARENTS,Children's Services,Childrens Services,Professional Services,,28/08/2014,"3,454.33"
5170071,PARALLEL PARENTS,Children's Services,Childrens Services,Professional Services,,28/08/2014,"3,454.33"
5170073,NORTHGATE INFORMATION SOLUTIONS UK LTD,Exchequer,Director of Finance,Computer Software,,27/08/2014,600
5170082,,Children's Services,Childrens Services,Childrens Homes Outside Local Authority Fees,Redacted Supplier,20/08/2014,"10,260.00"
5170087,PAYPARTNERS LTD (MONTHLY),Adult Services,"Community, Adult & Adults Early Intervention",Sub-contractor Services,,13/08/2014,931
5170088,PAYPARTNERS LTD (MONTHLY),Adult Services,"Community, Adult & Adults Early Intervention",Sub-contractor Services,,13/08/2014,"2,400.00"
5170089,PAYPARTNERS LTD (MONTHLY),Adult Services,"Community, Adult & Adults Early Intervention",Sub-contractor Services,,13/08/2014,"1,085.00"
5170090,SPECIALISED HOMES AND LODGINGS LTD,SCYP ,Childrens Services,Living With Formal Support,,28/08/2014,"3,214.28"
5170093,TARGET ESOLUTIONS LTD,Exchequer,Director of Finance,Licences,,27/08/2014,"14,670.25"
5170096,HMS DECORATIVE SURFACING LTD,(blank),(blank),Road Marking Works,,20/08/2014,"4,648.70"
5170100,CO-OPERATIVE BANK PLC,Adult Services,"Community, Adult & Adults Early Intervention",Bank Commission,,27/08/2014,10
5170100,CO-OPERATIVE BANK PLC,Digital Tameside,Places,Bank Commission,,27/08/2014,725.85
5170100,CO-OPERATIVE BANK PLC,Other Services,Director of Finance,Bank Commission,,27/08/2014,"5,263.00"
5170101,CO-OPERATIVE BANK PLC,Adult Services,"Community, Adult & Adults Early Intervention",Bank Commission,,27/08/2014,100
5170101,CO-OPERATIVE BANK PLC,Digital Tameside,Places,Bank Commission,,27/08/2014,648.12
5170101,CO-OPERATIVE BANK PLC,Other Services,Director of Finance,Bank Commission,,27/08/2014,"10,711.50"
5170118,GREENSCAPE,Adult Services,"Community, Adult & Adults Early Intervention",Tree Planting Programme,,07/08/2014,"1,237.86"
5170120,GREENSCAPE,Adult Services,"Community, Adult & Adults Early Intervention",Tree Planting Programme,,14/08/2014,"1,237.86"
5170122,GREENSCAPE,Adult Services,"Community, Adult & Adults Early Intervention",Tree Planting Programme,,07/08/2014,"1,237.86"
5170131,M J DELANEY & CO LTD,Neighbourhoods & Communities,"Community, Adult & Adults Early Intervention",Painting Works,,13/08/2014,950
5170133,M G DOMESTIC,Adult Services,"Community, Adult & Adults Early Intervention",Fixtures & Fittings Purchase,,07/08/2014,529.99
5170134,RNIB,Adult Services,"Community, Adult & Adults Early Intervention",Subscriptions,,11/08/2014,650
5170138,GREENSCAPE,Adult Services,"Community, Adult & Adults Early Intervention",Professional Services,,11/08/2014,"21,000.00"
5170142,RICOH UK,Multiple Heads of Service,Multiple Strategic Directorates,Debits,,21/08/2014,"1,149.80"
5170143,VIRGIN BLACKPOOL,Public Health,Public Health,Professional Services,,11/08/2014,938
5170198,,Adult Services,"Community, Adult & Adults Early Intervention",Day Care Fees,Redacted Supplier,07/08/2014,608.5
5170198,,Adult Services,"Community, Adult & Adults Early Intervention",Residential Home Short Stay Fees,Redacted Supplier,07/08/2014,84.12
5170211,VODAFONE,Multiple Heads of Service,Multiple Strategic Directorates,Repairs & Maintenance Of General Office Equipment,,11/08/2014,"15,928.00"
5170215,PG FABRICATIONS,Operations,Places,General Materials,,11/08/2014,"2,725.00"
5170216,SPECIALIST COMPUTER CENTRES LIMITED,Neighbourhoods & Communities,"Community, Adult & Adults Early Intervention",Computer Hardware Maintenance Costs,,11/08/2014,"3,230.07"
5170217,PG FABRICATIONS,Neighbourhoods & Communities,"Community, Adult & Adults Early Intervention",Building Maintenance,,07/08/2014,"1,476.00"
5170220,ELECTRICITY NORTH WEST LTD,Technical,Places,Reactive Works Engineers Recharge,,07/08/2014,609.99
5170221,ELECTRICITY NORTH WEST LTD,Technical,Places,Reactive Works Engineers Recharge,,11/08/2014,609.99
5170222,ELECTRICITY NORTH WEST LTD,Technical,Places,Reactive Works Engineers Recharge,,07/08/2014,609.99
5170223,,Children's Services,Childrens Services,Foster Carer Agency Fees,Redacted Supplier,20/08/2014,"3,017.40"
5170224,ELECTRICITY NORTH WEST LTD,Technical,Places,Reactive Works Engineers Recharge,,07/08/2014,609.99
5170225,WRIXON CARE SERVICES LTD,SCYP ,Childrens Services,Hired Transport,,07/08/2014,"1,457.20"
5170227,ELECTRICITY NORTH WEST LTD,Technical,Places,Reactive Works Engineers Recharge,,07/08/2014,609.99
5170230,MISS RACHAEL HEPPENSTALL,Children's Services,Childrens Services,Legal Fees,Business Payment,07/08/2014,550
5170231,VIRGIN BLACKPOOL,Public Health,Public Health,Professional Services,,11/08/2014,"2,191.00"
5170236,DVLA - ACCOUNTS RECEIVABLE,Audit & Risk Management,Director of Finance,Telephone Equipment Repairs & Maintenance,,07/08/2014,520
5170241,ICOUNT,Resource Management,Director of Finance,Training Course Costs,,18/08/2014,550
5170243,SPECIALIST COMPUTER CENTRES LIMITED,Children's Services,Childrens Services,It Equipment,,27/08/2014,"1,671.85"
5170251,PROFILE SECURITY SERVICES LIMITED,Tameside Investment Partnership,Places,Security Services,,07/08/2014,"4,608.00"
5170252,PROFILE SECURITY SERVICES LIMITED,Tameside Investment Partnership,Places,Security Services,,07/08/2014,960
5170254,THE TUTOR TRUST,Education Services,Childrens Services,Professional Services,,27/08/2014,"1,012.50"
5170257,ORANGE PCS,"Media, Marketing & Communications",Director of Governance,Mobile Telephones,,13/08/2014,"7,186.93"
5170258,ORANGE PCS,"Media, Marketing & Communications",Director of Governance,Mobile Telephones,,13/08/2014,915.02
5170260,MR JOHN DELANEY,Education Services,Childrens Services,Transport Of Pupils,Business Payment,07/08/2014,"1,400.00"
5170261,ORANGE PCS,"Media, Marketing & Communications",Director of Governance,Mobile Telephones,,13/08/2014,"2,993.34"
5170264,MR JOHN DELANEY,Education Services,Childrens Services,Transport Of Ola Pupils,Business Payment,07/08/2014,"1,036.00"
5170265,MICHAEL WILD,Education Services,Childrens Services,Transport Of Pupils,Business Payment,07/08/2014,"1,836.00"
5170275,GLM ACCESSIBLE TRANSPORT,Education Services,Childrens Services,Transport Of Pupils,Business Payment,07/08/2014,"1,260.00"
5170276,GLM ACCESSIBLE TRANSPORT,Education Services,Childrens Services,Transport Of Pupils,Business Payment,07/08/2014,980
5170282,LIME TRAVEL,Education Services,Childrens Services,Transport Of Pupils,,07/08/2014,"1,007.00"
5170283,LIME TRAVEL,Education Services,Childrens Services,Transport Of Ola Pupils,,07/08/2014,"1,816.50"
5170284,LIME TRAVEL,Education Services,Childrens Services,Transport Of Pupils,,07/08/2014,"1,729.00"
5170285,LIME TRAVEL,Education Services,Childrens Services,Transport Of Pupils,,07/08/2014,"1,274.00"
5170286,LIME TRAVEL,Education Services,Childrens Services,Transport Of Pupils,,07/08/2014,"1,729.00"
5170287,LIME TRAVEL,Education Services,Childrens Services,Transport Of Ola Pupils,,07/08/2014,"1,365.00"
5170293,HIGHLINK EVENTS,Children's Services,Childrens Services,Professional Interpreter Services,,13/08/2014,900
5170295,ONE5DESIGNS,Neighbourhoods & Communities,"Community, Adult & Adults Early Intervention","Marketing, Publicity and Recruitment",,13/08/2014,"2,970.00"
5170296,INSPIREDSPACES TAMESIDE(PROJECTCO1) LTD,Asset Mgmt & Investment Partnership Mgmt,Places,Free School Meal Costs,,20/08/2014,"5,502.00"
5170296,INSPIREDSPACES TAMESIDE(PROJECTCO1) LTD,Asset Mgmt & Investment Partnership Mgmt,Places,Unitary Charge Payments,,20/08/2014,"477,248.89"
5170296,INSPIREDSPACES TAMESIDE(PROJECTCO1) LTD,Asset Mgmt & Investment Partnership Mgmt,Places,Utilities,,20/08/2014,"30,618.05"
5170297,TAYLOR YOUNG LIMITED,Engineers Client,"Economic Growth, Investment and Sustainability",Consultancies,,27/08/2014,"4,000.00"
5170298,PYRAMID SCHOOLS (TAMESIDE) LTD,Asset Mgmt & Investment Partnership Mgmt,Places,PFI FM Fees and Insurance Costs,,20/08/2014,"7,999.76"
5170298,PYRAMID SCHOOLS (TAMESIDE) LTD,Asset Mgmt & Investment Partnership Mgmt,Places,Professional Services,,20/08/2014,456.9
5170298,PYRAMID SCHOOLS (TAMESIDE) LTD,Asset Mgmt & Investment Partnership Mgmt,Places,Unitary Charge Payments,,20/08/2014,"264,922.82"
5170299,MR KELVIN RUTLEDGE QC,Children's Services,Childrens Services,Legal Fees,Business Payment,21/08/2014,"2,350.00"
5170300,PYRAMID SCHOOLS (TAMESIDE) LTD,Asset Mgmt & Investment Partnership Mgmt,Places,Free School Meal Costs,,20/08/2014,"24,828.00"
5170300,PYRAMID SCHOOLS (TAMESIDE) LTD,Asset Mgmt & Investment Partnership Mgmt,Places,Professional Services,,20/08/2014,279.6
5170300,PYRAMID SCHOOLS (TAMESIDE) LTD,Asset Mgmt & Investment Partnership Mgmt,Places,Unitary Charge Payments,,20/08/2014,-720.72
5170301,SAS DANIELS LLP,Other Services,Director of Finance,Legal Fees,,21/08/2014,770
5170309,VIRGIN BLACKPOOL,Public Health,Public Health,Professional Services,,11/08/2014,"1,653.00"
5170310,MR AUSTIN WELCH,Environmental Services,Places,Legal Fees,Business Payment,11/08/2014,"1,000.00"
5170314,GLENN CAWTHORN,Education Services,Childrens Services,Transport Of Pupils,Business Payment,07/08/2014,841
5170316,MR JOHN DELANEY,Education Services,Childrens Services,Transport Of Pupils,Business Payment,07/08/2014,"1,400.00"
5170318,MOSSLEY PRIVATE HIRE,Education Services,Childrens Services,Transport Of Pupils,,07/08/2014,"1,400.00"
5170320,DAVID CROZIER,Education Services,Childrens Services,Transport Of Pupils,Business Payment,07/08/2014,912
5170322,DAVID CROZIER,Education Services,Childrens Services,Transport Of Pupils,Business Payment,07/08/2014,792
5170324,P MEADOWCROFT,Education Services,Childrens Services,Transport Of Pupils,Business Payment,07/08/2014,585
5170326,B MORRELL,Education Services,Childrens Services,Transport Of Pupils,Business Payment,07/08/2014,"1,300.00"
5170328,J & R TAXIS LTD,Technical,Places,Hired Transport,,07/08/2014,"2,464.00"
5170332,ROYALE MINICOACHES,Education Services,Childrens Services,Transport Of Pupils,,07/08/2014,"1,400.00"
5170336,B MORRELL,Technical,Places,Hired Transport,Business Payment,07/08/2014,"1,012.50"
5170338,PRS FOR MUSIC PAYMENTS,Tameside Investment Partnership,Places,Entertainment Licences,,20/08/2014,"1,150.17"
5170342,UNITED UTILITIES WATER PLC,Tameside Investment Partnership,Places,Metered Water Costs,,20/08/2014,545.56
5170346,UNITED UTILITIES WATER PLC,Tameside Investment Partnership,Places,Metered Water Costs,,20/08/2014,524.39
5170347,UNITED UTILITIES WATER PLC,Tameside Investment Partnership,Places,Metered Water Costs,,20/08/2014,"2,242.13"
5170348,UNITED UTILITIES WATER PLC,Tameside Investment Partnership,Places,Metered Water Costs,,20/08/2014,736.58
5170350,UNITED UTILITIES WATER PLC,Tameside Investment Partnership,Places,Metered Water Costs,,20/08/2014,999.28
5170353,CHESHIRE EAST BOROUGH COUNCIL,Children's Services,Childrens Services,Adoption Agency Fees,,18/08/2014,"27,000.00"
5170359,Miss Christine Riley,Children's Services,Childrens Services,Legal Fees,Business Payment,07/08/2014,950
5170371,NEW CHARTER HOUSING TRUST GROUP,Neighbourhoods & Communities,"Community, Adult & Adults Early Intervention",Contributions,,20/08/2014,"4,166.66"
5170372,NEW CHARTER HOUSING TRUST GROUP,Neighbourhoods & Communities,"Community, Adult & Adults Early Intervention",Housing Aid Function,,21/08/2014,"37,018.78"
5170374,NEW CHARTER HOUSING TRUST GROUP,Neighbourhoods & Communities,"Community, Adult & Adults Early Intervention",Supporting People Gross Contract,,13/08/2014,"20,022.16"
5170375,ADULLAM HOMES HOUSING ASSOC LTD,Neighbourhoods & Communities,"Community, Adult & Adults Early Intervention",Supporting People Gross Contract,,13/08/2014,"37,226.00"
5170376,MAKING SPACE,Adult Services,"Community, Adult & Adults Early Intervention",Voluntary Organisations Fees,,11/08/2014,"20,735.75"
5170380,,Children's Services,Childrens Services,Foster Carer Agency Fees,Redacted Supplier,28/08/2014,"3,410.00"
5170381,,Children's Services,Childrens Services,Foster Carer Agency Fees,Redacted Supplier,28/08/2014,"3,379.00"
5170383,NSL LIMITED,Technical,Places,NSL Fees,,27/08/2014,"55,149.30"
5170386,MRM STREET FURNITURE LIMITED,Operations,Places,General Materials,,27/08/2014,750
5170387,,Children's Services,Childrens Services,Childrens Homes Outside Local Authority Fees,Redacted Supplier,28/08/2014,"9,145.00"
5170390,GREENSCAPE,Operations,Places,Agency Staff,,14/08/2014,777.3
5170394,ARGOS BUSINESS SOLUTIONS,SCYP ,Childrens Services,Cash Grants,,28/08/2014,874.34
5170396,RICOH UK,Multiple Heads of Service,Multiple Strategic Directorates,Debits,,27/08/2014,805.61
5170406,,Children's Services,Childrens Services,Foster Carer Agency Fees,Redacted Supplier,28/08/2014,"3,871.90"
5170407,,Children's Services,Childrens Services,Foster Carer Agency Fees,Redacted Supplier,28/08/2014,"4,185.00"
5170418,"TAMESIDE, OLDHAM AND GLOSSOP MIND",Adult Services,"Community, Adult & Adults Early Intervention",Electricity,,13/08/2014,221.35
5170418,"TAMESIDE, OLDHAM AND GLOSSOP MIND",Adult Services,"Community, Adult & Adults Early Intervention",Professional Services,,13/08/2014,"15,000.00"
5170418,"TAMESIDE, OLDHAM AND GLOSSOP MIND",Adult Services,"Community, Adult & Adults Early Intervention",Waste Disposal Fees,,13/08/2014,577
5170424,DOMAIN CARE NORTH WEST LTD,Adult Services,"Community, Adult & Adults Early Intervention",Homecare Fees,,18/08/2014,799.5
5170426,DOMAIN CARE NORTH WEST LTD,Adult Services,"Community, Adult & Adults Early Intervention",Homecare Fees,,18/08/2014,639.6
5170427,DOMAIN CARE NORTH WEST LTD,Adult Services,"Community, Adult & Adults Early Intervention",Homecare Fees,,18/08/2014,"1,440.00"
5170429,PENNINE CARE NHS FOUNDATION TRUST,Public Health,Public Health,Professional Services,,14/08/2014,"273,285.00"
5170432,DOMAIN CARE NORTH WEST LTD,Adult Services,"Community, Adult & Adults Early Intervention",Homecare Fees,,18/08/2014,"3,960.00"
5170435,JULIE HOGAN,Children's Services,Childrens Services,"Activity (Materials, Trips)",Business Payment,13/08/2014,"1,501.36"
5170439,,Children's Services,Childrens Services,Childrens Homes Outside Local Authority Fees,Redacted Supplier,11/08/2014,"9,455.00"
5170440,,Children's Services,Childrens Services,Childrens Homes Outside Local Authority Fees,Redacted Supplier,11/08/2014,"9,455.00"
5170442,,Children's Services,Childrens Services,Childrens Homes Outside Local Authority Fees,Redacted Supplier,11/08/2014,"6,405.00"
5170444,FUSION CARE,SCYP ,Childrens Services,Living With Formal Support,,27/08/2014,"2,635.00"
5170445,,Children's Services,Childrens Services,Childrens Homes Outside Local Authority Fees,Redacted Supplier,28/08/2014,"8,525.00"
5170446,,Children's Services,Childrens Services,Childrens Homes Outside Local Authority Fees,Redacted Supplier,28/08/2014,"4,650.00"
5170454,COURTYARD CONTINUING CARE LTD T/A COURTYARD CARE PLUS,Children's Services,Childrens Services,Homecare Fees,,28/08/2014,940.5
5170455,COURTYARD CONTINUING CARE LTD T/A COURTYARD CARE PLUS,Children's Services,Childrens Services,Homecare Fees,,28/08/2014,"5,874.00"
5170464,,Adult Services,"Community, Adult & Adults Early Intervention",Contribution to Maintenance Fee Income,Redacted Supplier,11/08/2014,641.19
5170476,K P DODD CONSTRUCTION LTD,Housing,"Economic Growth, Investment and Sustainability",Improvement Grants - Final Mandatory,,11/08/2014,"3,810.00"
5170479,COMFORT CALL LIMITED,Adult Services,"Community, Adult & Adults Early Intervention",Homecare Fees,,11/08/2014,"28,756.78"
5170480,,Adult Services,"Community, Adult & Adults Early Intervention",Day Care Fees,Redacted Supplier,11/08/2014,678.56
5170483,COMFORT CALL LIMITED,Adult Services,"Community, Adult & Adults Early Intervention",Homecare Fees,,11/08/2014,"29,105.46"
5170485,COMFORT CALL LIMITED,Adult Services,"Community, Adult & Adults Early Intervention",Homecare Fees,,11/08/2014,"28,446.95"
5170486,MERIDIAN HEALTHCARE LTD,Adult Services,"Community, Adult & Adults Early Intervention",Day Centre Fees,,13/08/2014,"28,504.32"
5170487,MACK 4 LIMITED,Housing,"Economic Growth, Investment and Sustainability",Improvement Grants - Final Mandatory,,28/08/2014,"3,045.00"
5170489,,Children's Services,Childrens Services,Cash Grants,Redacted Supplier,13/08/2014,500
5170490,TAMESIDE ARTS LTD,Adult Services,"Community, Adult & Adults Early Intervention",Professional Services,,11/08/2014,"1,193.40"
5170496,THE FAMILY UNIT LTD,Adult Services,"Community, Adult & Adults Early Intervention",Homecare Fees,,11/08/2014,"3,416.00"
5170497,TAMESIDE ARTS LTD,Adult Services,"Community, Adult & Adults Early Intervention",Professional Services,,11/08/2014,"1,193.40"
5170503,CORONA ENERGY RETAIL 4 LIMITED,Tameside Investment Partnership,Places,Gas,,20/08/2014,"1,781.98"
5170504,CORONA ENERGY RETAIL 4 LIMITED,Tameside Investment Partnership,Places,Gas,,20/08/2014,643.36
5170505,DIRECT CARE (NORTH WEST) LTD,Adult Services,"Community, Adult & Adults Early Intervention",Homecare Fees,,14/08/2014,"4,640.29"
5170507,HOUSING AND CARE 21,Adult Services,"Community, Adult & Adults Early Intervention",Homecare Fees,,20/08/2014,"13,982.77"
5170513,HOUSING AND CARE 21,Adult Services,"Community, Adult & Adults Early Intervention",Homecare Fees,,21/08/2014,"14,571.49"
5170516,ROCHDALE MBC,Other Services,Director of Finance,Professional Services,,13/08/2014,"4,313.65"
5170518,TAMESIDE LINK,Adult Services,"Community, Adult & Adults Early Intervention",Voluntary Organisations Fees,,13/08/2014,"15,086.32"
5170520,CORONA ENERGY RETAIL 4 LIMITED,Tameside Investment Partnership,Places,Gas,,20/08/2014,787.66
5170522,CORONA ENERGY RETAIL 4 LIMITED,Tameside Investment Partnership,Places,Gas,,20/08/2014,"1,839.54"
5170523,PG FABRICATIONS,Operations,Places,General Materials,,18/08/2014,"1,015.00"
5170524,CORONA ENERGY RETAIL 4 LIMITED,Tameside Investment Partnership,Places,Gas,,20/08/2014,984.88
5170526,PG FABRICATIONS,Operations,Places,General Materials,,14/08/2014,945
5170528,CORONA ENERGY RETAIL 4 LIMITED,Tameside Investment Partnership,Places,Gas,,20/08/2014,"2,414.23"
5170532,ELECTRICITY NORTH WEST LTD,Technical,Places,Reactive Works Engineers Recharge,,11/08/2014,609.99
5170533,ELECTRICITY NORTH WEST LTD,Technical,Places,Reactive Works Engineers Recharge,,11/08/2014,609.99
5170543,PEARSON,Sustainable Growth,Places,Examination Fees,,20/08/2014,954.6
5170549,S ROCHE,Housing,"Economic Growth, Investment and Sustainability",Improvement Grants - Final Mandatory,Business Payment,11/08/2014,"1,098.00"
5170551,CORONA ENERGY RETAIL 4 LIMITED,Tameside Investment Partnership,Places,Gas,,20/08/2014,"1,045.91"
5170566,BGC BROKERS LTD,Resource Management,Director of Finance,Temporary Loans,,11/08/2014,"1,027.68"
5170569,ABLE CARE AND SUPPORT SERVICES LTD,Adult Services,"Community, Adult & Adults Early Intervention",Homecare Fees,,11/08/2014,"1,732.08"
5170572,DIRECT CARE (NORTH WEST) LTD,Adult Services,"Community, Adult & Adults Early Intervention",Homecare Fees,,14/08/2014,"4,043.60"
5170575,COMFORT CALL LIMITED,Adult Services,"Community, Adult & Adults Early Intervention",Homecare Fees,,28/08/2014,"29,226.74"
5170577,CORONA ENERGY RETAIL 4 LIMITED,Tameside Investment Partnership,Places,Gas,,20/08/2014,"1,107.00"
5170590,CORONA ENERGY RETAIL 4 LIMITED,Tameside Investment Partnership,Places,Gas,,20/08/2014,590.59
5170592,CORONA ENERGY RETAIL 4 LIMITED,Tameside Investment Partnership,Places,Gas,,20/08/2014,699.11
5170604,LANCASHIRE COUNTY COUNCIL,Neighbourhoods & Communities,"Community, Adult & Adults Early Intervention",General Materials,,11/08/2014,705
5170605,PULSE,Adult Services,"Community, Adult & Adults Early Intervention",Homecare Fees,,28/08/2014,"2,440.32"
5170608,NPOWER LIMITED,Tameside Investment Partnership,Places,Electricity,,20/08/2014,818.13
5170609,NPOWER LIMITED,Tameside Investment Partnership,Places,Electricity,,20/08/2014,907.79
5170612,UNITED UTILITIES WATER PLC,Tameside Investment Partnership,Places,Metered Water Costs,,20/08/2014,547.29
5170615,UNITED UTILITIES WATER PLC,Tameside Investment Partnership,Places,Metered Water Costs,,20/08/2014,"4,390.92"
5170616,ULVERSCROFT LARGE PRINT  BOOKS LTD,Neighbourhoods & Communities,"Community, Adult & Adults Early Intervention",Gas,,28/08/2014,966.43
5170623,UNITED UTILITIES WATER PLC,Tameside Investment Partnership,Places,Metered Water Costs,,20/08/2014,888.06
5170625,CORONA ENERGY RETAIL 4 LIMITED,Tameside Investment Partnership,Places,Gas,,20/08/2014,946.18
5170627,MRL HEALTHCARE LIMITED,Adult Services,"Community, Adult & Adults Early Intervention",Homecare Fees,,11/08/2014,"12,345.02"
5170629,MEDICO NURSING AND HOMECARE,Adult Services,"Community, Adult & Adults Early Intervention",Homecare Fees,,11/08/2014,"9,619.41"
5170630,HOUSING AND CARE 21,Adult Services,"Community, Adult & Adults Early Intervention",Homecare Fees,,20/08/2014,"14,911.37"
5170634,BALLET THEATRE UK,Neighbourhoods & Communities,"Community, Adult & Adults Early Intervention",Professional Entertainment Services,,11/08/2014,"1,060.00"
5170635,COMMUNITY INTEGRATED CARE,Adult Services,"Community, Adult & Adults Early Intervention",Homecare Fees,,28/08/2014,"18,360.00"
5170636,THYSSENKRUPP ENCASA LTD,Housing,"Economic Growth, Investment and Sustainability",Improvement Grants - Final Mandatory,,11/08/2014,"3,874.00"
5170638,MR JAMES TURLEY T/A R TURLEY PLUMBERS,Housing,"Economic Growth, Investment and Sustainability",Improvement Grants - Final Mandatory,Business Payment,14/08/2014,"3,660.00"
5170641,PROFILE SECURITY SERVICES LIMITED,Technical,Places,Security Services,,28/08/2014,"2,545.29"
5170645,CITY LIFT SERVICES (NW) LTD,Adult Services,"Community, Adult & Adults Early Intervention",Adaptations To Buildings,,11/08/2014,"1,080.00"
5170649,RAYMOND C HARRISON BUILDERS,Housing,"Economic Growth, Investment and Sustainability",Improvement Grants - Final Mandatory,,28/08/2014,"3,430.00"
5170651,ATKINS LTD,Engineers Client,"Economic Growth, Investment and Sustainability",Consultancies,,18/08/2014,915.61
5170652,STOCKPORT MBC,Sustainable Growth,Places,Professional Services,,18/08/2014,"75,000.00"
5170653,ELECTRICITY NORTH WEST LTD,Technical,Places,Street Lighting,,21/08/2014,649.63
5170654,STOCKPORT MBC,Engineers Client,"Economic Growth, Investment and Sustainability",Consultancies,,18/08/2014,"237,500.00"
5170655,STEP AHEAD RESOURCE SERVICES,SCYP ,Childrens Services,Living With Formal Support,,18/08/2014,850
5170658,STEP AHEAD RESOURCE SERVICES,SCYP ,Childrens Services,Living With Formal Support,,13/08/2014,750
5170659,STEP AHEAD RESOURCE SERVICES,SCYP ,Childrens Services,Living With Formal Support,,14/08/2014,750
5170660,STEP AHEAD RESOURCE SERVICES,SCYP ,Childrens Services,Living With Formal Support,,13/08/2014,850
5170661,STEP AHEAD RESOURCE SERVICES,SCYP ,Childrens Services,Living With Formal Support,,13/08/2014,750
5170662,STEP AHEAD RESOURCE SERVICES,SCYP ,Childrens Services,Living With Formal Support,,14/08/2014,750
5170663,ACORN RECOVERY PROJECTS,Public Health,Public Health,Professional Services,,14/08/2014,996.43
5170664,ACORN RECOVERY PROJECTS,Public Health,Public Health,Professional Services,,14/08/2014,996.43
5170665,ACORN RECOVERY PROJECTS,Public Health,Public Health,Professional Services,,14/08/2014,"1,028.57"
5170666,ACORN RECOVERY PROJECTS,Public Health,Public Health,Professional Services,,14/08/2014,996.43
5170668,ACORN RECOVERY PROJECTS,Public Health,Public Health,Professional Services,,14/08/2014,739.29
5170669,ACORN RECOVERY PROJECTS,Public Health,Public Health,Professional Services,,14/08/2014,996.43
5170675,DAISY COMMUNICATIONS LTD,Multiple Heads of Service,Multiple Strategic Directorates,Debits,,28/08/2014,"5,362.89"
5170679,,Children's Services,Childrens Services,Foster Carer Agency Fees,Redacted Supplier,13/08/2014,"2,825.00"
5170680,TAMESIDE RADIO,Technical,Places,Statutory Advertising,,11/08/2014,620
5170686,JOY LEGAL LTD,Borough Solicitor,Director of Governance,Agency Staff,,13/08/2014,"3,240.00"
5170687,,Children's Services,Childrens Services,Cash Grants,Redacted Supplier,13/08/2014,"1,000.00"
5170688,PRD PROPERTY SERVICES LTD,Borough Solicitor,Director of Governance,Agency Staff,,13/08/2014,"3,720.00"
5170697,MIDDLETON PSYCHOLOGY LIMITED,Education Services,Childrens Services,Professional Services,,28/08/2014,"1,200.00"
5170701,AGE UK TAMESIDE,Adult Services,"Community, Adult & Adults Early Intervention",Age Concern Fees,,21/08/2014,"11,473.22"
5170702,MAUREEN NOBLE,Children's Services,Childrens Services,Professional Services,Business Payment,11/08/2014,"1,320.00"
5170703,AGE UK TAMESIDE,Adults Early Intervention,"Community, Adult & Adults Early Intervention",Age Concern Fees,,18/08/2014,"3,501.67"
5170704,MAUREEN NOBLE,Children's Services,Childrens Services,Professional Services,Business Payment,11/08/2014,"2,255.00"
5170707,ERIC SLATER INTERIOR DESIGN,Operations,Places,Painting Works,,14/08/2014,"1,078.00"
5170708,THE GUINNESS PARTNERSHIP LTD,Adult Services,"Community, Adult & Adults Early Intervention",Non-Authority Accommodation Rental,,11/08/2014,"3,903.20"
5170709,THE GUINNESS PARTNERSHIP LTD,Adult Services,"Community, Adult & Adults Early Intervention",Non-Authority Accommodation Rental,,11/08/2014,"1,172.45"
5170715,NPOWER LIMITED,Technical,Places,Electricity,,18/08/2014,"101,105.47"
5170717,NPOWER LIMITED,Technical,Places,Electricity,,18/08/2014,"86,277.63"
5170720,NPOWER LIMITED,Technical,Places,Electricity,,18/08/2014,"73,282.70"
5170728,CORONA ENERGY RETAIL 4 LIMITED,Tameside Investment Partnership,Places,Gas,,20/08/2014,564.97
5170729,CORONA ENERGY RETAIL 4 LIMITED,Tameside Investment Partnership,Places,Gas,,20/08/2014,650.05
5170730,NPOWER LIMITED,Tameside Investment Partnership,Places,Electricity,,20/08/2014,"7,291.62"
5170731,NPOWER LIMITED,Tameside Investment Partnership,Places,Electricity,,20/08/2014,"22,579.54"
5170732,NPOWER LIMITED,Tameside Investment Partnership,Places,Electricity,,20/08/2014,"2,332.72"
5170733,NPOWER LIMITED,Tameside Investment Partnership,Places,Electricity,,20/08/2014,"1,215.64"
5170734,UNITED UTILITIES WATER PLC,Tameside Investment Partnership,Places,Metered Water Costs,,20/08/2014,528.35
5170735,EON ENERGY,Technical,Places,Electricity,,18/08/2014,"2,798.25"
5170749,CASH BOX CREDIT UNION LTD,Neighbourhoods & Communities,"Community, Adult & Adults Early Intervention",Professional Services,,11/08/2014,"5,333.33"
5170750,CASH BOX CREDIT UNION,Neighbourhoods & Communities,"Community, Adult & Adults Early Intervention",Emergency Grant Payments,,13/08/2014,"20,000.00"
5170752,EQUIFAX LTD,Audit & Risk Management,Director of Finance,Professional Services,,28/08/2014,"3,290.53"
5170754,MARKET TRADE NEWS,Technical,Places,Statutory Advertising,,18/08/2014,500
5170759,CARE UK HOMECARE,Adult Services,"Community, Adult & Adults Early Intervention",Homecare Fees,,20/08/2014,"31,271.77"
5170761,THE LOWRY,Neighbourhoods & Communities,"Community, Adult & Adults Early Intervention",Professional Entertainment Services,,11/08/2014,530
5170765,HOUSING AND CARE 21,Adult Services,"Community, Adult & Adults Early Intervention",Homecare Fees,,28/08/2014,"13,433.40"
5170766,HOUSING AND CARE 21,Adult Services,"Community, Adult & Adults Early Intervention",Homecare Fees,,28/08/2014,"12,959.27"
5170769,BT PLC,Multiple Heads of Service,Multiple Strategic Directorates,Telephone Landline Costs,,13/08/2014,"2,559.97"
5170770,BT PLC,Multiple Heads of Service,Multiple Strategic Directorates,Telephone Landline Costs,,13/08/2014,865.1
5170772,AGE UK TAMESIDE,Adults Early Intervention,"Community, Adult & Adults Early Intervention",Age Concern Fees,,18/08/2014,"4,660.00"
5170773,AGE UK TAMESIDE,Public Health,Public Health,Professional Services,,13/08/2014,"13,000.00"
5170774,AGE UK TAMESIDE,Adults Early Intervention,"Community, Adult & Adults Early Intervention",Professional Services,,18/08/2014,"6,930.00"
5170775,STOCKPORT NHS FOUNDATION TRUST,Children's Services,Childrens Services,Homecare Fees,,13/08/2014,"1,891.00"
5170776,CARE UK HOMECARE,Adult Services,"Community, Adult & Adults Early Intervention",Homecare Fees,,20/08/2014,"31,758.07"
5170777,CARE UK HOMECARE,Adult Services,"Community, Adult & Adults Early Intervention",Homecare Fees,,20/08/2014,"32,267.21"
5170778,MRL HEALTHCARE LIMITED,Adult Services,"Community, Adult & Adults Early Intervention",Homecare Fees,,18/08/2014,"12,797.02"
5170779,MRL HEALTHCARE LIMITED,Adult Services,"Community, Adult & Adults Early Intervention",Homecare Fees,,21/08/2014,"13,429.92"
5170791,S & M BUILDERS TAMESIDE LTD,Technical,Places,Engineers Works,,13/08/2014,"1,000.00"
5170802,J FROGGATT LIMITED PENSION SCHEME,Tameside Investment Partnership,Places,Non-Authority Accommodation Rental,,20/08/2014,"2,833.33"
5170806,COURTYARD CONTINUING CARE LTD T/A COURTYARD CARE PLUS,Children's Services,Childrens Services,Homecare Fees,,20/08/2014,"5,667.75"
5170817,STOCKPORT NHS FOUNDATION TRUST,Adult Services,"Community, Adult & Adults Early Intervention",Agency Staff,,20/08/2014,"2,977.08"
5170819,CALL A CAR (TAMESIDE) LTD,Asset Mgmt & Investment Partnership Mgmt,Places,Hired Transport,,20/08/2014,765
5170832,SCC CONSULTANCY LIMITED,Education Services,Childrens Services,Professional Services,,20/08/2014,"2,240.00"
5170833,SCC CONSULTANCY LIMITED,Education Services,Childrens Services,Professional Services,,20/08/2014,"3,920.00"
5170849,,Children's Services,Childrens Services,Homecare Fees,Redacted Supplier,20/08/2014,"3,710.00"
5170850,,Children's Services,Childrens Services,Childrens Homes Outside Local Authority Fees,Redacted Supplier,18/08/2014,"13,064.33"
5170859,CREATIVE SUPPORT LTD,Adult Services,"Community, Adult & Adults Early Intervention",Homecare Fees,,18/08/2014,"15,291.50"
5170860,CREATIVE SUPPORT LTD,Adult Services,"Community, Adult & Adults Early Intervention",Homecare Fees,,18/08/2014,"15,291.50"
5170865,,Adult Services,"Community, Adult & Adults Early Intervention",Day Care Fees,Redacted Supplier,27/08/2014,694.54
5170870,,Adult Services,"Community, Adult & Adults Early Intervention",Residential Home Short Stay Fees,Redacted Supplier,27/08/2014,630.9
5170881,NPOWER LIMITED,Education Services,Childrens Services,Metered Water Costs,,20/08/2014,"1,462.85"
5170888,PARKLANE,Technical,Places,Hired Transport,,13/08/2014,"1,821.60"
5170889,PARKLANE,Technical,Places,Hired Transport,,13/08/2014,"2,208.00"
5170890,FENTONS TAXIS,Technical,Places,Hired Transport,,13/08/2014,"1,162.00"
5170891,MOSSLEY PRIVATE HIRE,Technical,Places,Hired Transport,,13/08/2014,"1,497.00"
5170892,MOSSLEY PRIVATE HIRE,Technical,Places,Hired Transport,,13/08/2014,"1,357.00"
5170893,MOSSLEY PRIVATE HIRE,Strategy & Early Intervention,Childrens Services,Hired Transport,,13/08/2014,642.5
5170895,MOSSLEY PRIVATE HIRE,Technical,Places,Hired Transport,,13/08/2014,765
5170896,MR JOHN DELANEY,Technical,Places,Hired Transport,Business Payment,13/08/2014,"1,955.00"
5170899,LIME TRAVEL,Children's Services,Childrens Services,Hired Transport,,13/08/2014,"1,050.00"
5170904,LIME TRAVEL,Children's Services,Childrens Services,Hired Transport,,13/08/2014,908.25
5170914,MARK HARLOW,Technical,Places,Hired Transport,Business Payment,13/08/2014,"1,540.00"
5170915,MARK HARLOW,Technical,Places,Hired Transport,Business Payment,13/08/2014,660
5170917,STAMFORD CARS UK LTD,Education Services,Childrens Services,Transport Of Ola Pupils,,13/08/2014,"1,155.00"
5170918,STAMFORD CARS UK LTD,Education Services,Childrens Services,Transport Of Ola Pupils,,13/08/2014,"1,008.00"
5170919,STAMFORD CARS UK LTD,Education Services,Childrens Services,Transport Of Ola Pupils,,13/08/2014,684.25
5170920,STAMFORD CARS UK LTD,Education Services,Childrens Services,Transport Of Ola Pupils,,13/08/2014,"2,120.00"
5170921,STAMFORD CARS UK LTD,Education Services,Childrens Services,Transport Of Ola Pupils,,13/08/2014,"3,040.00"
5170922,STAMFORD CARS UK LTD,Education Services,Childrens Services,Transport Of Ola Pupils,,13/08/2014,882
5170923,STAMFORD CARS UK LTD,Education Services,Childrens Services,Transport Of Pupils,,13/08/2014,972
5170925,STAMFORD CARS UK LTD,Education Services,Childrens Services,Transport Of Post 16 Pupils,,13/08/2014,773.5
5170928,STAMFORD CARS UK LTD,Education Services,Childrens Services,Transport Of Pupils,,13/08/2014,773.5
5170931,STAMFORD CARS UK LTD,Technical,Places,Hired Transport,,13/08/2014,"1,210.00"
5170932,STAMFORD CARS UK LTD,Technical,Places,Hired Transport,,13/08/2014,765
5170937,STAMFORD CARS UK LTD,Education Services,Childrens Services,Transport Of Pupils,,13/08/2014,617.5
5170938,STAMFORD CARS UK LTD,Education Services,Childrens Services,Transport Of Pupils,,13/08/2014,"1,288.00"
5170939,STAMFORD CARS UK LTD,Education Services,Childrens Services,Transport Of Pupils,,13/08/2014,972
5170951,,Children's Services,Childrens Services,Foster Carer Agency Fees,Redacted Supplier,14/08/2014,"3,077.99"
5170952,,Children's Services,Childrens Services,Foster Carer Agency Fees,Redacted Supplier,14/08/2014,"3,289.50"
5170953,,Children's Services,Childrens Services,Foster Carer Agency Fees,Redacted Supplier,14/08/2014,"3,360.24"
5170955,CREATIVE SUPPORT LTD,Adult Services,"Community, Adult & Adults Early Intervention",Homecare Fees,,18/08/2014,"15,335.50"
5170957,CREATIVE SUPPORT LTD,Adult Services,"Community, Adult & Adults Early Intervention",Homecare Fees,,18/08/2014,"15,291.50"
5170959,PAYPOINT COLLECTIONS LTD,Neighbourhoods & Communities,"Community, Adult & Adults Early Intervention",Emergency Grant Payments,,18/08/2014,890
5170960,PAYPOINT COLLECTIONS LTD,Neighbourhoods & Communities,"Community, Adult & Adults Early Intervention",Emergency Grant Payments,,18/08/2014,723
5170964,VINCENT OBRIEN (CONSTRUCTION),Housing,"Economic Growth, Investment and Sustainability",Improvement Grants - Final Mandatory,,18/08/2014,"3,970.00"
5170968,IN CONTROL PARTNERSHIP,Adult Services,"Community, Adult & Adults Early Intervention",Professional Consultancy Services,,21/08/2014,"4,166.66"
5170969,TURNING POINT SERVICES LTD,Adult Services,"Community, Adult & Adults Early Intervention",Independent Sector Care Fees,,21/08/2014,"46,566.67"
5170972,SIGNS EXPRESS,Operations,Places,Signs,,18/08/2014,"3,995.46"
5170976,STOCKPORT NHS FOUNDATION TRUST,Public Health,Public Health,"Marketing, Publicity and Recruitment",,27/08/2014,"2,000.00"
5170990,WRIXON CARE SERVICES LTD,SCYP ,Childrens Services,Transport Of Pupils,,14/08/2014,"1,450.00"
5170992,THE FAMILY UNIT LTD,SCYP ,Childrens Services,Living With Formal Support,,14/08/2014,"3,000.00"
5171018,THE FURNISHING SERVICE LTD,Neighbourhoods & Communities,"Community, Adult & Adults Early Intervention",Fixtures & Fittings Purchase,,28/08/2014,509.84
5171025,MANCHESTER COMMUNITY TRANSPORT LIMITED,Education Services,Childrens Services,Hired Transport,,28/08/2014,"13,490.00"
5171028,GREYSTONES TAMESIDE LTD,Neighbourhoods & Communities,"Community, Adult & Adults Early Intervention",Supporting People Gross Contract,,14/08/2014,"8,333.33"
5171030,NEW CHARTER HOUSING TRUST GROUP,Multiple Heads of Service,Multiple Strategic Directorates,Professional Services,,18/08/2014,"20,000.00"
5171032,GREYSTONES TAMESIDE LTD,Neighbourhoods & Communities,"Community, Adult & Adults Early Intervention",Supporting People Gross Contract,,18/08/2014,"14,212.87"
5171035,HMCTS,Exchequer,Director of Finance,Court Fees,,18/08/2014,"5,046.00"
5171038,PROGRESS CARE HOUSING ASSOCIATION LIMITED,Adult Services,"Community, Adult & Adults Early Intervention",Non-Authority Accommodation Rental,,21/08/2014,"5,316.08"
5171044,,Adult Services,"Community, Adult & Adults Early Intervention",Contribution to Maintenance Fee Income,Redacted Supplier,18/08/2014,923.48
5171046,M.C. & M.A. STEWART HAULAGE LTD,Operations,Places,General Materials,,14/08/2014,690.48
5171047,M.C. & M.A. STEWART HAULAGE LTD,Operations,Places,General Materials,,14/08/2014,"2,490.00"
5171065,GIBSONS GARDEN MACHINERY LIMITED,Operations,Places,Horticultural Equipment,,21/08/2014,"1,074.00"
5171066,PHS GROUP PLC,Environmental Services,Places,Purchase Wheeled Bins,,14/08/2014,"2,126.56"
5171069,S ROCHE,Housing,"Economic Growth, Investment and Sustainability",Improvement Grants - Final Mandatory,Business Payment,18/08/2014,"5,333.00"
5171071,BRIAN GLYNN & CO,Housing,"Economic Growth, Investment and Sustainability",Improvement Grants - Final Mandatory,,18/08/2014,"3,015.00"
5171072,POSTAGE BY PHONE PITNEY BOWES LTD,Exchequer,Director of Finance,Postages,,18/08/2014,"5,009.00"
5171076,AUTUMN (UK)  LTD,Housing,"Economic Growth, Investment and Sustainability",Improvement Grants - Final Mandatory,,18/08/2014,"3,768.00"
5171078,ANVIL MASTERS,Multiple Heads of Service,Multiple Strategic Directorates,Security Equipment,,21/08/2014,764.89
5171081,ANVIL MASTERS,Operations,Places,General Materials,,21/08/2014,"4,135.71"
5171085,ROYAL MAIL GROUP PLC,Exchequer,Director of Finance,Postages,,28/08/2014,"1,662.97"
5171090,ANVIL MASTERS,Multiple Heads of Service,Multiple Strategic Directorates,Security Equipment,,21/08/2014,"3,882.00"
5171091,POSTAGE BY PHONE PITNEY BOWES LTD,Exchequer,Director of Finance,Postages,,18/08/2014,"7,132.80"
5171097,ANVIL MASTERS,Multiple Heads of Service,Multiple Strategic Directorates,Security Equipment,,21/08/2014,"2,237.10"
5171118,NEW BRIDGE HORIZONS,Adult Services,"Community, Adult & Adults Early Intervention",Homecare Fees,,27/08/2014,"2,345.50"
5171134,BERTRAM LIBRARY SERVICES,Neighbourhoods & Communities,"Community, Adult & Adults Early Intervention",Purchase Books,,28/08/2014,"10,524.51"
5171139,POST OFFICE,Technical,Places,Motor Licence Costs,,18/08/2014,"2,175.00"
5171148,RUPOSHI BANGLA LIMITED,Neighbourhoods & Communities,"Community, Adult & Adults Early Intervention",Purchase Books,,21/08/2014,641.28
5171149,CORONA ENERGY RETAIL 4 LIMITED,Education Services,Childrens Services,Gas,,20/08/2014,913.78
5171159,DETECT ALL FIRE AND SECURITY SYSTEMS,Education Services,Childrens Services,Security Services,,20/08/2014,585
5171166,NHS GREATER MANCHESTER CSU,Public Health,Public Health,Professional Services,,18/08/2014,"3,026.72"
5171168,FURNACE CONSTRUCTION CREMATORS LIMITED,Environmental Services,Places,Building Works,,18/08/2014,"3,672.40"
5171171,ROYAL MAIL GROUP PLC,Exchequer,Director of Finance,Postages,,21/08/2014,"1,788.13"
5171176,DWP,Multiple Heads of Service,Multiple Strategic Directorates,Claims Settled,,18/08/2014,627
5171181,REGENDA LIMITED,Adult Services,"Community, Adult & Adults Early Intervention",Non-Authority Accommodation Rental,,18/08/2014,"18,953.36"
5171185,GETRONICS UNIFIED COMMUNICATIONS UK LIMITED,Digital Tameside,Places,Telephone Landline Costs,,28/08/2014,"6,550.00"
5171193,BROMLEYS SOLICITORS LLP,Multiple Heads of Service,Multiple Strategic Directorates,Claims Settled,,21/08/2014,"5,520.00"
5171204,CONTOUR HOMES GROUP LTD,Children's Services,Childrens Services,Living Without Formal Support,,27/08/2014,732.96
5171231,,Children's Services,Childrens Services,Foster Carer Agency Fees,Redacted Supplier,27/08/2014,"1,575.74"
5171232,DBS,People & Performance,Director of Governance,Professional Consultancy Services,,21/08/2014,"13,288.00"
5171247,STAMFORD CARS UK LTD,Education Services,Childrens Services,Transport Of Ola Pupils,,20/08/2014,"1,284.50"
5171248,STAMFORD CARS UK LTD,Education Services,Childrens Services,Transport Of Pupils,,20/08/2014,"1,071.00"
5171249,STAMFORD CARS UK LTD,Education Services,Childrens Services,Transport Of Pupils,,20/08/2014,"1,264.50"
5171250,STAMFORD CARS UK LTD,Education Services,Childrens Services,Transport Of Ola Pupils,,20/08/2014,"1,249.50"
5171253,STAMFORD CARS UK LTD,Education Services,Childrens Services,Transport Of Ola Pupils,,20/08/2014,"1,249.50"
5171254,STAMFORD CARS UK LTD,Education Services,Childrens Services,Transport Of Pupils,,20/08/2014,855
5171255,STAMFORD CARS UK LTD,Education Services,Childrens Services,Transport Of Pupils,,20/08/2014,965.25
5171256,STAMFORD CARS UK LTD,Education Services,Childrens Services,Transport Of Pupils,,20/08/2014,715
5171257,STAMFORD CARS UK LTD,Education Services,Childrens Services,Transport Of Pupils,,20/08/2014,"1,053.00"
5171258,STAMFORD CARS UK LTD,Education Services,Childrens Services,Transport Of Pupils,,20/08/2014,773.5
5171259,STAMFORD CARS UK LTD,Education Services,Childrens Services,Transport Of Pupils,,20/08/2014,882
5171261,STAMFORD CARS UK LTD,Education Services,Childrens Services,Transport Of Ola Pupils,,20/08/2014,"1,435.00"
5171269,MR PHILIP DE BERRY,Housing,"Economic Growth, Investment and Sustainability",Legal Fees,Business Payment,20/08/2014,"1,740.00"
5171271,TAMESIDE ARTS LTD,Adult Services,"Community, Adult & Adults Early Intervention",Professional Services,,27/08/2014,"1,193.40"
5171314,UNITED UTILITIES WATER PLC,Tameside Investment Partnership,Places,Metered Water Costs,,20/08/2014,544.15
5171322,CORONA ENERGY RETAIL 4 LIMITED,Tameside Investment Partnership,Places,Gas,,20/08/2014,552.11
5171339,M G DOMESTIC,Adult Services,"Community, Adult & Adults Early Intervention",Fixtures & Fittings Purchase,,20/08/2014,514.99
5171353,RECREATIONAL COATINGS LTD,Neighbourhoods & Communities,"Community, Adult & Adults Early Intervention",Other Accomodation Related Costs,,21/08/2014,"10,000.00"
5171354,BOLTON MBC,Neighbourhoods & Communities,"Community, Adult & Adults Early Intervention",Contingency Provisions,,20/08/2014,"4,590.40"
5171370,THE FAMILY UNIT LTD,SCYP ,Childrens Services,Living With Formal Support,,20/08/2014,"3,400.00"
5171371,THE FAMILY UNIT LTD,SCYP ,Childrens Services,Living With Formal Support,,20/08/2014,"3,400.00"
5171373,THE FAMILY UNIT LTD,SCYP ,Childrens Services,Living With Formal Support,,20/08/2014,"5,400.00"
5171376,ABLE CARE AND SUPPORT SERVICES LTD,Adult Services,"Community, Adult & Adults Early Intervention",Homecare Fees,,21/08/2014,"1,716.84"
5171380,ATKINS LTD,Engineers Client,"Economic Growth, Investment and Sustainability",Consultancies,,21/08/2014,"4,351.68"
5171381,UNIT 4 BUSINESS SOFTWARE LIMITED,Resource Management,Director of Finance,Professional Consultancy Services,,27/08/2014,"41,975.84"
5171388,COMFORT CALL LIMITED,Adult Services,"Community, Adult & Adults Early Intervention",Homecare Fees,,28/08/2014,"28,311.45"
5171396,CREATIVE SUPPORT LTD,Adult Services,"Community, Adult & Adults Early Intervention",Residential Home Long Stay Fees,,27/08/2014,"1,661.52"
5171400,ORACLE CORPORATION UKLTD,Digital Tameside,Places,Computer Hardware Maintenance Costs,,21/08/2014,"2,732.41"
5171405,ALLIED HEALTHCARE GROUP LTD (MEDICO),Adult Services,"Community, Adult & Adults Early Intervention",Homecare Fees,,20/08/2014,"9,369.25"
5171406,ALLIED HEALTHCARE GROUP LTD (MEDICO),Adult Services,"Community, Adult & Adults Early Intervention",Homecare Fees,,27/08/2014,"9,675.73"
5171407,ALLIED HEALTHCARE GROUP LTD (MEDICO),Adult Services,"Community, Adult & Adults Early Intervention",Homecare Fees,,20/08/2014,"9,515.65"
5171414,CORONA ENERGY RETAIL 4 LIMITED,Tameside Investment Partnership,Places,Gas,,20/08/2014,"1,161.54"
5171444,CORONA ENERGY RETAIL 4 LIMITED,Tameside Investment Partnership,Places,Gas,,20/08/2014,721.57
5171465,JULIE CARTER,Adult Services,"Community, Adult & Adults Early Intervention",Professional Interpreter Services,Business Payment,27/08/2014,784
5171469,SCOTTISH POWER,Tameside Investment Partnership,Places,Electricity,,20/08/2014,"1,802.75"
5171473,UNITED UTILITIES WATER PLC,Tameside Investment Partnership,Places,Metered Water Costs,,20/08/2014,763.45
5171478,DIRECT CARE (NORTH WEST) LTD,Adult Services,"Community, Adult & Adults Early Intervention",Homecare Fees,,20/08/2014,"4,083.56"
5171491,PAYPOINT COLLECTIONS LTD,Neighbourhoods & Communities,"Community, Adult & Adults Early Intervention",Emergency Grant Payments,,27/08/2014,730
5171494,,Adult Services,"Community, Adult & Adults Early Intervention",Petty Cash,Redacted Supplier,20/08/2014,757.31
5171504,COURTYARD CONTINUING CARE LTD T/A COURTYARD CARE PLUS,Children's Services,Childrens Services,Homecare Fees,,27/08/2014,"5,907.00"
5171530,,Children's Services,Childrens Services,Foster Carer Agency Fees,Redacted Supplier,20/08/2014,"3,575.85"
5171562,HMS DECORATIVE SURFACING LTD,Engineers Client,"Economic Growth, Investment and Sustainability",Highway Construction,,27/08/2014,"10,525.82"
5171562,HMS DECORATIVE SURFACING LTD,Technical,Places,Non Illuminated Signs Engineers Recharge,,27/08/2014,"5,908.60"
5171562,HMS DECORATIVE SURFACING LTD,Technical,Places,Signs,,27/08/2014,"1,702.91"
5171573,PRIORY TENNIS CLUB,Borough Solicitor,Director of Governance,Non-Authority Accommodation Rental,,27/08/2014,500
5171577,,Adult Services,"Community, Adult & Adults Early Intervention",Residential Home Short Stay Fees,Redacted Supplier,27/08/2014,588.84
5171591,UNITED UTILITIES WATER PLC,Tameside Investment Partnership,Places,Metered Water Costs,,21/08/2014,959.61
5171596,UNITED UTILITIES WATER PLC,Tameside Investment Partnership,Places,Metered Water Costs,,21/08/2014,736.68
5171600,UNITED UTILITIES WATER PLC,Tameside Investment Partnership,Places,Metered Water Costs,,21/08/2014,"3,426.06"
5171605,UNITED UTILITIES WATER PLC,Tameside Investment Partnership,Places,Metered Water Costs,,21/08/2014,"1,541.03"
5171606,UNITED UTILITIES WATER PLC,Tameside Investment Partnership,Places,Metered Water Costs,,21/08/2014,"1,541.03"
5171610,STOCKPORT CP  SOCIETY,Adult Services,"Community, Adult & Adults Early Intervention",Day Centre Fees,,27/08/2014,805.08
5171612,STOCKPORT CP  SOCIETY,Adult Services,"Community, Adult & Adults Early Intervention",Day Centre Fees,,27/08/2014,805.08
5171616,MIDLAND SOFTWARE LTD,People & Performance,Director of Governance,Professional Services,,27/08/2014,"1,728.99"
5171618,STEP AHEAD RESOURCE SERVICES,SCYP ,Childrens Services,Living With Formal Support,,27/08/2014,750
5171622,STEP AHEAD RESOURCE SERVICES,SCYP ,Childrens Services,Living With Formal Support,,27/08/2014,750
5171624,UNITED UTILITIES WATER PLC,Tameside Investment Partnership,Places,Metered Water Costs,,21/08/2014,"3,588.85"
5171629,PROFESSOR ANN M MORTIMER,Children's Services,Childrens Services,Professional Services,,27/08/2014,"1,392.41"
5171651,ICA UK,People & Performance,Director of Governance,Training Course Costs,,21/08/2014,"3,686.00"
5171659,,Adult Services,"Community, Adult & Adults Early Intervention",Petty Cash,Redacted Supplier,21/08/2014,"1,354.53"
5171661,,Adult Services,"Community, Adult & Adults Early Intervention",Catering Income,Redacted Supplier,21/08/2014,"1,292.66"
5171662,RUPERT WOOD & SON,Multiple Heads of Service,Multiple Strategic Directorates,Claims Settled,,21/08/2014,"6,000.00"
5171672,NHS TAMESIDE AND GLOSSOP CCG,People & Performance,Director of Governance,Professional Consultancy Services,,27/08/2014,"5,986.40"
5171673,MAGIQUE GALILEO SOFTWARD LTD,Audit & Risk Management,Director of Finance,Computer Hardware Maintenance Costs,,21/08/2014,"2,200.00"
5171676,TAMESIDE HOSPITAL NHS FOUNDATION TRUST,People & Performance,Director of Governance,Professional Consultancy Services,,27/08/2014,"2,193.00"
5171679,CGS TRAINING AND CONSULTING LTD,People & Performance,Director of Governance,Training Course Costs,,27/08/2014,690
5171680,CARE UK HOMECARE,Adult Services,"Community, Adult & Adults Early Intervention",Homecare Fees,,21/08/2014,"31,000.54"
5171681,ABLE CARE AND SUPPORT SERVICES LTD,Adult Services,"Community, Adult & Adults Early Intervention",Homecare Fees,,21/08/2014,"1,879.56"
5171699,MIDDLETON PSYCHOLOGY LIMITED,Education Services,Childrens Services,Professional Services,,28/08/2014,800
5171707,MR JAMES TURLEY T/A R TURLEY PLUMBERS,Housing,"Economic Growth, Investment and Sustainability",Improvement Grants - Final Mandatory,Business Payment,27/08/2014,"3,120.00"
5171720,,SCYP ,Childrens Services,Living With Formal Support,Redacted Supplier,28/08/2014,"8,848.33"
5171723,GREATER MANCHESTER COMBINED AUTHORITY,Engineers Client,"Economic Growth, Investment and Sustainability",Traffic Signals,,21/08/2014,553.09
5171725,GREATER MANCHESTER COMBINED AUTHORITY,Engineers Client,"Economic Growth, Investment and Sustainability",Engineers -External,,27/08/2014,"1,092.60"
5171726,GREATER MANCHESTER COMBINED AUTHORITY,Engineers Client,"Economic Growth, Investment and Sustainability",Engineers -External,,27/08/2014,"7,451.58"
5171727,PROFILE SECURITY SERVICES LIMITED,Tameside Investment Partnership,Places,Security Services,,28/08/2014,"2,643.85"
5171741,,Children's Services,Childrens Services,Foster Carer Agency Fees,Redacted Supplier,21/08/2014,"3,623.90"
5171747,MICHAEL ADLARD,Children's Services,Childrens Services,Hired Transport,Business Payment,21/08/2014,639
5171749,MICHAEL ADLARD,Education Services,Childrens Services,Transport Of Pupils,Business Payment,21/08/2014,"1,120.00"
5171751,MICHAEL ADLARD,Education Services,Childrens Services,Transport Of Pupils,Business Payment,21/08/2014,"1,040.00"
5171755,G M GREEN,Education Services,Childrens Services,Transport Of Pupils,Business Payment,21/08/2014,"1,260.00"
5171760,LINK4LIFE,Neighbourhoods & Communities,"Community, Adult & Adults Early Intervention",Contingency Provisions,,21/08/2014,"3,000.00"
5171764,TOUCHLINE FABRICATIONS LTD,Operations,Places,General Materials,,21/08/2014,"3,915.56"
5171787,PAYPARTNERS LTD (MONTHLY),Adult Services,"Community, Adult & Adults Early Intervention",Sub-contractor Services,,27/08/2014,"1,085.00"
5171788,,Children's Services,Childrens Services,Foster Carer Agency Fees,Redacted Supplier,28/08/2014,"24,042.76"
5171815,REGENDA LIMITED,Adult Services,"Community, Adult & Adults Early Intervention",Non-Authority Accommodation Rental,,27/08/2014,"18,953.36"
5171818,PARAGON POS,Tameside Investment Partnership,Places,Computer Software Maintenance Costs,,27/08/2014,"1,440.00"
5171826,NPOWER LIMITED,Technical,Places,Electricity,,27/08/2014,"79,343.82"
5171846,ROYAL MENCAP SOCIETY,Adult Services,"Community, Adult & Adults Early Intervention",Voluntary Organisations Fees,,27/08/2014,"12,120.00"
5171851,PROFILE SECURITY SERVICES LIMITED,Operations,Places,General Materials,,27/08/2014,"3,456.00"
5171854,ROSS AUTO ENGINEERING LIMITED,Adult Services,"Community, Adult & Adults Early Intervention",Joint Loans Store Fee,,27/08/2014,"142,259.00"
5171855,ROSS AUTO ENGINEERING LIMITED,Adult Services,"Community, Adult & Adults Early Intervention",Joint Loans Store Fee,,27/08/2014,"128,605.77"
5171861,PSC BUSINESS CONSULTANTS,Children's Services,Childrens Services,Conference/Seminar Expenses For Staff,,27/08/2014,"1,032.00"
5171877,NWA SOCIAL & MARKET RESEARCH LIMITED,Policy & Scrutiny,Director of Governance,Research Fees,,27/08/2014,"3,493.00"
5171880,,Children's Services,Childrens Services,Foster Carer Agency Fees,Redacted Supplier,27/08/2014,"3,520.71"
5171884,PROFILE SECURITY SERVICES LIMITED,Operations,Places,General Materials,,28/08/2014,"6,813.18"
5171889,,Adult Services,"Community, Adult & Adults Early Intervention",Professional Consultancy Services,Redacted Supplier,27/08/2014,"1,950.00"
5171893,,Children's Services,Childrens Services,Childrens Homes Outside Local Authority Fees,Redacted Supplier,28/08/2014,"19,330.80"
5171913,CREDIT CARD EMERGENCY PLANNING,Audit & Risk Management,Director of Finance,Professional Services,,27/08/2014,954.35
5171914,CREDIT CARD EMERGENCY PLANNING,Audit & Risk Management,Director of Finance,Professional Services,,27/08/2014,"1,030.28"
5171917,CARDSAVE ONLINE LTD,Exchequer,Director of Finance,National Giro,,27/08/2014,"1,396.85"
5171924,ANVIL MASTERS,Neighbourhoods & Communities,"Community, Adult & Adults Early Intervention",Security Equipment,,28/08/2014,916.55
5171926,CARDSAVE ONLINE LTD,Exchequer,Director of Finance,National Giro,,27/08/2014,"1,344.35"
5171927,ADONI SOFTWARE,Digital Tameside,Places,Computer Software,,27/08/2014,"2,600.00"
5171931,SANTANDER UK PLC,Exchequer,Director of Finance,National Giro,,27/08/2014,"6,055.52"
5171932,,Children's Services,Childrens Services,Foster Carer Agency Fees,Redacted Supplier,27/08/2014,799
5171933,,Children's Services,Childrens Services,Foster Carer Agency Fees,Redacted Supplier,28/08/2014,800
5171934,,Children's Services,Childrens Services,Foster Carer Agency Fees,Redacted Supplier,28/08/2014,777.6
5171935,,Children's Services,Childrens Services,Foster Carer Agency Fees,Redacted Supplier,28/08/2014,"4,636.67"
5171944,,Children's Services,Childrens Services,Childrens Homes Outside Local Authority Fees,Redacted Supplier,27/08/2014,"11,545.95"
5171945,,Children's Services,Childrens Services,Foster Carer Agency Fees,Redacted Supplier,27/08/2014,799
5171946,,Children's Services,Childrens Services,Childrens Homes Outside Local Authority Fees,Redacted Supplier,27/08/2014,"10,402.67"
5171947,,Children's Services,Childrens Services,Foster Carer Agency Fees,Redacted Supplier,28/08/2014,800
5171951,,Children's Services,Childrens Services,Foster Carer Agency Fees,Redacted Supplier,27/08/2014,799
5171965,NPOWER LIMITED,Tameside Investment Partnership,Places,Electricity,,27/08/2014,"2,361.66"
5171970,NPOWER LIMITED,Tameside Investment Partnership,Places,Electricity,,27/08/2014,861.86
5171972,NPOWER LIMITED,Tameside Investment Partnership,Places,Electricity,,27/08/2014,750.43
5171973,NPOWER LIMITED,Tameside Investment Partnership,Places,Electricity,,27/08/2014,729.23
5171976,NPOWER LIMITED,Tameside Investment Partnership,Places,Electricity,,27/08/2014,"1,250.64"
5171978,NPOWER LIMITED,Tameside Investment Partnership,Places,Electricity,,27/08/2014,738.57
5171979,G4S CASH SOLUTIONS (UK) LIMITED,Borough Solicitor,Director of Governance,Security Services,,27/08/2014,54.32
5171979,G4S CASH SOLUTIONS (UK) LIMITED,Neighbourhoods & Communities,"Community, Adult & Adults Early Intervention",Security Services,,27/08/2014,488.84
5171980,NPOWER LIMITED,Tameside Investment Partnership,Places,Electricity,,27/08/2014,"2,000.78"
5171983,VODAFONE,Adult Services,"Community, Adult & Adults Early Intervention",Telephone Landline Costs,,27/08/2014,21.2
5171983,VODAFONE,Multiple Heads of Service,Multiple Strategic Directorates,Debits,,27/08/2014,973.42
5171983,VODAFONE,Neighbourhoods & Communities,"Community, Adult & Adults Early Intervention",Telephone Landline Costs,,27/08/2014,26.15
5171983,VODAFONE,Operations,Places,Telephone Landline Costs,,27/08/2014,33.67
5171985,NPOWER LIMITED,Tameside Investment Partnership,Places,Electricity,,27/08/2014,501.32
5171986,NPOWER LIMITED,Asset Mgmt & Investment Partnership Mgmt,Places,Electricity,,27/08/2014,679.37
5171988,NPOWER LIMITED,Tameside Investment Partnership,Places,Electricity,,27/08/2014,829.82
5171990,NPOWER LIMITED,Tameside Investment Partnership,Places,Electricity,,27/08/2014,758.4
5171991,NPOWER LIMITED,Tameside Investment Partnership,Places,Electricity,,27/08/2014,"1,567.64"
5171993,NPOWER LIMITED,Tameside Investment Partnership,Places,Electricity,,27/08/2014,"1,488.87"
5171994,VODAFONE,Adult Services,"Community, Adult & Adults Early Intervention",Telephone Landline Costs,,27/08/2014,21.2
5171994,VODAFONE,Multiple Heads of Service,Multiple Strategic Directorates,Debits,,27/08/2014,975.96
5171994,VODAFONE,Neighbourhoods & Communities,"Community, Adult & Adults Early Intervention",Telephone Landline Costs,,27/08/2014,26.15
5171994,VODAFONE,Operations,Places,Telephone Landline Costs,,27/08/2014,33.67
5171995,THE CO-OP BANK PLC,Children's Services,Childrens Services,"Activity (Materials, Trips)",,27/08/2014,450.22
5171995,THE CO-OP BANK PLC,Children's Services,Childrens Services,Legal Fees,,27/08/2014,36
5171995,THE CO-OP BANK PLC,Children's Services,Childrens Services,Personal Needs Entertainments & Holidays,,27/08/2014,513
5171995,THE CO-OP BANK PLC,Education Services,Childrens Services,Purchase General Office Equipment,,27/08/2014,68.78
5171995,THE CO-OP BANK PLC,Exchequer,Director of Finance,Fees,,27/08/2014,2
5171995,THE CO-OP BANK PLC,Exchequer,Director of Finance,Purchase Books,,27/08/2014,201.94
5171998,NPOWER LIMITED,Tameside Investment Partnership,Places,Electricity,,27/08/2014,924.92
5172004,NPOWER LIMITED,Tameside Investment Partnership,Places,Electricity,,27/08/2014,550.1
5172006,NPOWER LIMITED,Tameside Investment Partnership,Places,Electricity,,27/08/2014,"1,414.09"
5172007,NPOWER LIMITED,Tameside Investment Partnership,Places,Electricity,,27/08/2014,"1,381.26"
5172008,NPOWER LIMITED,Tameside Investment Partnership,Places,Electricity,,27/08/2014,609.26
5172010,NPOWER LIMITED,Tameside Investment Partnership,Places,Electricity,,27/08/2014,766.77
5172011,NPOWER LIMITED,Tameside Investment Partnership,Places,Electricity,,27/08/2014,880.61
5172014,NPOWER LIMITED,Tameside Investment Partnership,Places,Electricity,,27/08/2014,647.96
5172023,VODAFONE,Asset Mgmt & Investment Partnership Mgmt,Places,Telephone Landline Costs,,27/08/2014,816.08
5172024,NPOWER LIMITED,Asset Mgmt & Investment Partnership Mgmt,Places,Electricity,,27/08/2014,826.68
5172037,,Adult Services,"Community, Adult & Adults Early Intervention",Residential Home Short Stay Fees,Redacted Supplier,27/08/2014,504.72
5172038,,Adult Services,"Community, Adult & Adults Early Intervention",Residential Home Short Stay Fees,Redacted Supplier,27/08/2014,925.32
5172042,,Adult Services,"Community, Adult & Adults Early Intervention",Professional Interpreter Services,Redacted Supplier,27/08/2014,601.44
5172044,,Children's Services,Childrens Services,Childrens Homes Outside Local Authority Fees,Redacted Supplier,27/08/2014,"9,964.33"
5172055,TAMESIDE SPORTS TRUST,Cultural and Customer Services,"Community,Environmental,Adult and Health Services",Refurbishment Construction Costs,,27/08/2014,"81,470.24"
5172058,CORONA ENERGY RETAIL 4 LIMITED,Tameside Investment Partnership,Places,Gas,,27/08/2014,"3,558.72"
5172108,TAMESIDE SPORTS TRUST,Children's Services,Childrens Services,Homecare Fees,,28/08/2014,"39,000.00"
5172131,OFSTED,Children's Services,Childrens Services,Inspection Fees,,27/08/2014,"1,601.00"
5172160,OFSTED,Children's Services,Childrens Services,Inspection Fees,,27/08/2014,"2,078.00"
5172177,LINK TRAINING PARTNERSHIP,Education Services,Childrens Services,Training Course Costs,,27/08/2014,"1,500.00"
5172185,THE FOSTERING TEAM,Children's Services,Childrens Services,Professional Services,,28/08/2014,"1,600.00"
5172187,CARE IN MIND LTD,Children's Services,Childrens Services,Homecare Fees,,28/08/2014,"4,788.46"
5172347,DCM SURFACES,District Assemblies,"Community,Environmental,Adult and Health Services",General Equipment Repair & Maintenance,,28/08/2014,"2,390.00"
29000015,AWBURN HOUSE MEDICAL PRACTICE,Public Health,Public Health,Local Enhanced Services,,21/08/2014,589
29000015,BEDFORD HOUSE MEDICAL CENTRE,Public Health,Public Health,Local Enhanced Services,,21/08/2014,"1,220.80"
29000015,BOOTS UK LTD,Public Health,Public Health,Local Enhanced Services,,21/08/2014,542.2
29000015,CHAPEL STREET MEDICAL CENTRE,Public Health,Public Health,Local Enhanced Services,,21/08/2014,"1,768.00"
29000015,CHURCHGATE SURGERY,Public Health,Public Health,Local Enhanced Services,,21/08/2014,"1,270.20"
29000015,DAVAAR MEDICAL CENTRE,Public Health,Public Health,Local Enhanced Services,,21/08/2014,"1,608.00"
29000015,DENTON MEDICAL PRACTICE,Public Health,Public Health,Local Enhanced Services,,21/08/2014,"2,317.00"
29000015,DONNEYBROOK MEDICAL CENTRE,Public Health,Public Health,Local Enhanced Services,,21/08/2014,"1,001.10"
29000015,DRS J PROCTER & D MARR,Public Health,Public Health,Local Enhanced Services,Business Payment,21/08/2014,"2,141.00"
29000015,GROSVENOR MEDICAL CENTRE,Public Health,Public Health,Local Enhanced Services,,21/08/2014,601.1
29000015,HATTERSLEY GROUP PRACTICE,Public Health,Public Health,Local Enhanced Services,,21/08/2014,773.9
29000015,HAUGHTON-THORNLEY MEDICAL CENTRE,Public Health,Public Health,Local Enhanced Services,,21/08/2014,"1,916.20"
29000015,HAUGHTON-THORNLEY MEDICAL CENTRE,Public Health,Public Health,National Enhanced Services,,21/08/2014,"3,616.00"
29000015,HIGHLANDS & TRAFALGAR SQUARE SURGERY,Public Health,Public Health,Local Enhanced Services,,21/08/2014,534
29000015,LAMBGATES HEALTH CENTRE,Public Health,Public Health,Local Enhanced Services,,21/08/2014,"2,642.90"
29000015,MANOR HOUSE SURGERY,Public Health,Public Health,Local Enhanced Services,,21/08/2014,961.59
29000015,MEDICX PHARMACY,Public Health,Public Health,Local Enhanced Services,,21/08/2014,"3,000.67"
29000015,MEDLOCK VALE MEDICAL PRACTICE,Public Health,Public Health,Local Enhanced Services,,21/08/2014,734.5
29000015,MOSSLEY MEDICAL PRACTICE,Public Health,Public Health,Local Enhanced Services,,21/08/2014,"1,143.10"
29000015,SIMMONDLEY MEDICAL PRACTICE,Public Health,Public Health,Local Enhanced Services,,21/08/2014,688.3
29000015,STAMFORD HOUSE MEDICAL CENTRE,Public Health,Public Health,Local Enhanced Services,,21/08/2014,905.5
29000015,THE BROOKE SURGERY,Public Health,Public Health,Local Enhanced Services,,21/08/2014,"2,281.80"
29000015,TOWN HALL SURGERY,Public Health,Public Health,Local Enhanced Services,,21/08/2014,772.5
29000015,WEST END MEDICAL PRACTICE,Public Health,Public Health,Local Enhanced Services,,21/08/2014,618
29000015,WINDMILL MEDICAL PRACTICE,Public Health,Public Health,Local Enhanced Services,,21/08/2014,"1,452.80"
 ,CAPITA - BENEFIT PAYMENTS,Exchequer,Director of Finance, ,,,"7,237,383.83"
,HAYS SPECIALIST RECRUITMENT GROUP,Multiple Heads of Service,Multiple Strategic Directorates,,,,"81,953.96"
,CARE RELATED PAYMENTS,Multiple Heads of Service,Multiple Strategic Directorates,,,,"376,713.36"
